{"text_format":"1","workbook":"xlsx","n_sheets":8,"sheets":["※マクロについて","機械装置入力シート（ICT肉用牛繁殖用）","出力シート（ICT 別添6-1）","出力シート（ICT 別添6-1別紙）","まとめシート（ICT 別添6）","項目リスト","機械装置リスト","機械装置リスト_隠し"],"not_rendered":{"charts":0,"images":31,"macros":1,"external_links":1,"defined_names":131,"comments":0,"pivot_tables":0},"unopened":[],"bounds":{"document_bytes":16777216,"sheet_cells":100000,"rows_first":2000,"rows_last":500,"rows_between":2000,"halvings":0,"cell_chars":16384,"cell_head_chars":4096},"cells_cut":0,"cells_raw":0,"read":"whole","date_system":"1900"}

{"sheet":"※マクロについて","index":0,"n_rows":70,"n_cols":4,"rows_kept":70,"cut":false,"hidden":false,"merged":[[3,0,3,8],[14,3,14,4],[64,0,64,8]]}
["本ファイルにはマクロが設定されています。作業時に以下の点にご留意の上、必ずマクロを有効にして使用願います。"]
[]
[]
["留意点1　[マクロを有効にする際の留意点]"]
["①：セキュリティリスクの警告が出る場合は、ファイルのプロパティからマクロの実行を許可します。"]
["　　※環境によってはこの警告が出ない場合があります"]
[]
[]
[]
[null,"ファイルを右クリックします。"]
[null,"表示されたウィンドウで「プロパティ」をクリックすると下の方にセキュリティの項目が表示されます。"]
[null,"「許可する」にチェックを入れて「OK」をクリックします。"]
[]
[]
[null,null,null,"右クリックで表示"]
[]
[]
[]
[]
[]
[]
[]
[]
[]
[]
[]
[]
[]
[]
[]
[]
[]
[]
[]
[]
[]
[]
["②：「編集を有効にする」（赤○囲み）を選択すると編集可能になります。"]
["　　※環境によってはこの警告が出ない場合があります"]
[]
[]
[]
["③：「コンテンツの有効化」（赤○囲み）を選択するとマクロが有効になります。"]
["　　※環境によってはこの警告が出ない場合があります"]
[]
[]
[]
["　　※環境によっては下記のような警告である場合があります。この場合は「マクロを有効にする」をクリックしてください。"]
[]
[]
[]
[]
[]
[]
[]
[]
[]
[]
[]
[]
[]
[]
[]
[]
["留意点２　[マクロを使用する際の留意点]"]
[]
[null,"・マクロの列の挿入・削除は行わないでください。"]
[null,"　セルの位置が変わると正しく動かなくなることがあります。"]
[]
[null,"・シート名を変更したり、シートを削除したりしないでください。"]

{"sheet":"機械装置入力シート（ICT肉用牛繁殖用）","index":1,"n_rows":165,"n_cols":20,"rows_kept":165,"cut":false,"hidden":false,"merged":[[146,0,146,12],[150,0,151,5],[150,7,151,8],[150,9,153,9],[150,14,151,16],[150,17,153,17],[150,18,153,18],[152,0,153,0],[152,4,153,4],[152,7,153,7],[152,8,153,8],[152,14,153,14],[152,15,153,15],[152,16,153,16],[50,15,50,16],[51,15,51,16],[57,13,57,14],[56,13,56,14],[60,13,60,14],[50,12,50,13],[51,12,51,13],[73,15,73,16],[65,8,65,9],[73,6,73,8],[63,13,63,14],[71,13,71,14],[72,11,72,12],[72,13,72,14],[62,13,62,14],[51,8,51,9],[65,15,65,16],[72,6,72,7],[60,15,60,16],[61,15,61,16],[61,13,61,14],[56,15,56,16],[57,15,57,16],[62,15,62,16],[92,13,92,14],[85,6,85,8],[80,6,80,7],[90,13,90,14],[84,5,84,6],[87,13,87,14],[91,13,91,14],[88,11,88,12],[88,13,88,14],[89,11,89,12],[89,13,89,14],[84,14,84,15],[87,4,87,5],[85,15,85,16],[84,11,84,13],[92,4,92,5],[80,13,80,14],[84,2,84,4],[88,4,88,5],[116,10,116,11],[117,10,117,11],[111,2,111,3],[75,4,75,5],[75,6,75,7],[126,10,126,11],[123,10,123,11],[112,10,112,11],[111,10,111,11],[114,10,114,11],[125,10,125,11],[112,4,112,8],[113,4,113,8],[121,10,121,11],[120,10,120,11],[119,10,119,11],[118,10,118,11],[115,10,115,11],[122,4,122,8],[113,10,113,11],[112,2,112,3],[90,4,90,5],[122,10,122,11],[129,2,129,11],[63,15,63,16],[78,13,78,14],[75,11,75,12],[76,13,76,14],[77,11,77,12],[77,13,77,14],[76,11,76,12],[75,13,75,14],[65,13,65,14],[64,15,64,16],[64,13,64,14],[65,10,65,11],[71,11,71,12],[78,11,78,12],[126,2,126,3],[128,8,128,9],[75,2,75,3],[76,4,76,5],[76,6,76,7],[79,13,79,14],[75,8,75,9],[76,2,76,3],[71,8,71,9],[128,10,128,11],[124,4,124,8],[124,10,124,11],[125,4,125,8],[126,4,126,8],[78,8,78,9],[79,8,79,9],[118,2,118,3],[114,4,114,8],[104,5,104,12],[90,11,90,12],[87,11,87,12],[109,10,109,11],[110,10,110,11],[80,11,80,12],[80,2,80,3],[80,8,80,9],[97,7,97,9],[80,4,80,5],[78,4,78,5],[79,4,79,5],[111,4,111,8],[79,11,79,12],[114,2,114,3],[62,2,62,3],[62,4,62,5],[63,2,63,3],[91,11,91,12],[92,11,92,12],[102,10,102,11],[61,2,61,3],[64,2,64,3],[130,2,130,12],[118,4,118,8],[115,2,115,3],[115,4,115,8],[89,2,89,3],[119,2,119,3],[119,4,119,8],[116,2,116,3],[116,4,116,8],[117,2,117,3],[117,4,117,8],[120,4,120,8],[121,4,121,8],[123,4,123,8],[113,2,113,3],[89,4,89,5],[65,2,65,3],[72,2,72,3],[71,2,71,3],[71,4,71,5],[72,4,72,5],[65,4,65,5],[77,2,77,3],[78,6,78,7],[110,2,110,3],[110,4,110,8],[91,2,91,3],[72,8,72,9],[77,4,77,5],[76,8,76,9],[77,6,77,7],[77,8,77,9],[79,6,79,7],[79,2,79,3],[87,2,87,3],[88,2,88,3],[90,2,90,3],[78,2,78,3],[91,4,91,5],[92,2,92,3],[71,6,71,7],[65,6,65,7],[63,10,63,11],[64,10,64,11],[62,8,62,9],[63,8,63,9],[62,10,62,11],[57,8,57,9],[64,4,64,5],[61,4,61,5],[63,4,63,5],[58,6,58,14],[60,10,60,11],[57,6,57,7],[60,6,60,7],[61,6,61,7],[62,6,62,7],[63,6,63,7],[64,6,64,7],[64,8,64,9],[61,8,61,9],[61,10,61,11],[1,12,1,13],[1,6,1,8],[60,8,60,9],[51,6,51,7],[47,10,47,11],[47,6,47,7],[50,10,50,11],[12,11,12,14],[13,11,13,14],[15,11,15,14],[15,8,15,10],[2,6,2,7],[6,6,6,7],[50,6,50,7],[50,8,50,9],[51,10,51,11],[52,4,52,9],[25,1,25,10],[40,2,40,4],[42,2,42,4],[42,5,42,6],[48,2,48,3],[49,2,49,3],[45,2,46,3],[50,4,50,5],[60,4,60,5],[56,2,56,3],[60,2,60,3],[57,2,57,3],[52,2,52,3],[50,2,50,3],[49,8,49,9],[40,5,40,9],[51,4,51,5],[55,4,55,11],[56,6,56,7],[26,1,26,10],[47,2,47,3],[56,10,56,11],[57,10,57,11],[56,8,56,9],[57,4,57,5],[56,4,56,5],[51,2,51,3],[1,9,1,10],[4,6,4,7],[3,1,3,5],[4,1,4,5],[5,1,5,5],[6,1,6,5],[18,1,18,5],[22,8,22,10],[20,8,20,10],[5,6,5,7],[3,6,3,7],[13,9,13,10],[12,9,12,10],[2,1,2,5],[17,1,17,5],[21,8,21,10],[21,2,21,5],[22,2,22,5],[49,15,49,16],[45,15,46,16],[47,15,47,16],[48,15,48,16],[49,6,49,7],[49,10,49,11],[49,4,49,5],[45,8,45,11],[48,4,48,5],[48,12,48,13],[49,12,49,13],[48,6,48,7],[48,8,48,9],[48,10,48,11],[46,10,46,11],[47,8,47,9],[46,8,46,9],[45,4,46,5],[45,6,46,7],[45,12,46,13],[47,4,47,5],[47,12,47,13]]}
["ステージ１：申請概要の入力(肉用牛繁殖用)",null,null,null,null,null,null,null,null,"管理申し送り事項欄"]
[null,null,null,null,null,null,"↓該当するものに「○」をプルダウン選択。",null,null,null,null,null,"出力シート"]
[null,"申請する内容",null,null,null,null,"申請区分",null,null,"ステージ２\n（機械装置）","ステージ３\n（施設整備等）",null,"出力シート\n（ICT 別添6-1）","まとめシート\n（ICT 別添6）"]
[null,"①　餌寄せロボット、発情発見装置、分娩監視装置、行動監視装置（繁殖）、行動監視装置（放牧）、移動式ほ乳機",null,null,null,null,null,null,null,"可能",null,null,"出力","出力"]
[null,"②　ほ乳ロボット（通常タイプ：レール式で無いもの）、自走式配餌車、 自動離脱装置付きミルカー",null,null,null,null,null,null,null,"可能",null,null,"出力","出力"]
[null,"②　自動給餌機（濃厚飼料用）、自動給餌機（濃厚・粗飼料用）、自走式配餌車、ほ乳ロボット（据え置き式、レール式を含む）、バーンスクレーパー、敷料散布機",null,null,null,null,null,null,null,"可能",null,null,"出力","出力"]
[null,"④　上記③と一体的な補改修・増築等",null,null,null,null,null,null,null,null,"可能",null,null,null,"出力","出力","出力"]
[]
[]
["機械装置の入力(肉用牛繁殖用)"]
[]
[]
[null,null,null,null,null,null,null,null,"応援会議番号：",null,null,"←県内の会議整理番号を入力"]
[null,null,null,null,null,null,null,null,"都道府県名：",null,null,"　※プルダウンで選択"]
[]
[null,null,null,null,null,null,null,"申込年月日",null,null,null,"←「yyyy/mm/dd」で入力"]
[]
["応援会議名",null,null,null,null,null,"※プルダウンで選択。"]
["会議の代表者名",null,null,null,null,null,"殿"]
[]
[null,null,null,null,null,null,null,"住所"]
[null,"新規応援会議名",null,null,null,null,null,"法人名称又は氏名"]
[null,"会議の代表者名",null,null,null,null,null,"（法人の場合 代表者名）"]
[]
[]
[null,"ICT化等機械装置等導入事業　肉用牛繁殖用"]
[null,"要望調査票作成用入力シート"]
[]
[]
[]
[]
[null,"１　経営の概況（令和７年５月１日現在）"]
[]
[null,null,"成雌牛頭数",null,null,"頭"]
[null,null,"労働力",null,null,"人"]
[null,null,"年間総労働時間",null,null,"時間"]
[]
[null,"２　機械装置の導入関係"]
[null,"（１）搾乳方式の改善"]
[null,null,"①現在の状況"]
[null,null,"現状の搾乳方式：",null,null,null,null,null,null,null,"【必須】"]
[]
[null,null,"自動乳頭洗浄機の保有：",null,null,null,null,"←現在保有の場合に「○」をプルダウンで選択。"]
[]
[null,null,"②導入希望の機械装置"]
[null,null,"機械装置の種類",null,"搾乳ロボット",null,"ミルキングパーラー",null,"搾乳ユニット搬送レール",null,null,null,"ミルカー\n自動離脱装置",null,null,"自動乳頭洗浄機"]
[null,null,null,null,null,null,null,null,"自動搬送方式",null,"手動搬送方式"]
[null,null,"機械装置のメーカー名"]
[null,null,"型式"]
[null,null,"台(式)数"]
[null,null,"見積金額（税抜）の計"]
[null,null,"消費税額"]
[null,null,"従来の搾乳方式"]
[]
[null,"（１）給餌方式の改善"]
[null,null,"①現在の状況",null,"↓現在保有の機械装置に「○」をプルダウン選択。全て未選択の場合は「人力による給餌方式」が自動選択。"]
[null,null,"  機械装置の種類",null,"自動給餌機（濃厚・粗飼料用）",null,"自動給餌機（濃厚飼料用）",null,"餌寄せロボット",null,"自走式配餌車",null,null,"ほ乳ロボット",null,"移動式ほ乳機"]
[null,null,"  機器の保有状況"]
[null,null,"  飼料給与関係機械装置の保有状況："]
[null,null,"②導入希望の機械装置",null,"（給餌）",null,null,null,0,null,null,null,null,"（ほ乳）"]
[null,null,"機械装置の種類",null,"自動給餌機（濃厚・粗飼料用）",null,"自動給餌機（濃厚飼料用）",null,"餌寄せロボット",null,"自走式配餌車",null,null,"ほ乳ロボット",null,"移動式ほ乳機"]
[null,null,"機械装置のメーカー名"]
[null,null,"型式"]
[null,null,"台(式)数"]
[null,null,"見積金額（税抜）の計"]
[null,null,"消費税額"]
[]
[]
[null,"（２）家畜飼養管理の改善"]
[null,null,"（繁殖管理）",null,"↓現在保有の機械装置に「○」をプルダウン選択。\n",null,null,null,null,null,null,"（放牧管理）",null,"↓現在保有の機械装置に「○」をプルダウン選択。"]
[null,null,"①現在の状況",null,"全て未選択の場合は「人力による観察方式」が自動選択。",null,null,null,null,null,null,"①現在の状況",null,"全て未選択の場合は「人力による観察方式」が自動選択。"]
[null,null,"　機械装置の種類",null,"発情発見装置",null,"分娩監視装置",null,"行動監視装置（繁殖）",null,null,"　機械装置の種類",null,"行動監視装置（放牧）"]
[null,null,"　機器の保有状況",null,null,null,null,null,null,null,null,"　機器の保有状況"]
[null,null,"　家畜飼養管理機械装置の保有状況：",null,null,null,null,null,null,null,null,"　放牧管理機械装置の保有状況："]
[null,null,"②導入希望の機械装置",null,null,null,null,null,null,null,null,"②導入希望の機械装置"]
[null,null,"機械装置の種類",null,"発情発見装置",null,"分娩監視装置",null,"行動監視装置（繁殖）",null,null,"機械装置の種類",null,"行動監視装置（放牧）"]
[null,null,"機械装置のメーカー名",null,null,null,null,null,null,null,null,"機械装置のメーカー名"]
[null,null,"型式",null,null,null,null,null,null,null,null,"型式"]
[null,null,"台(式)数",null,null,null,null,null,null,null,null,"台(式)数"]
[null,null,"見積金額（税抜）の計",null,null,null,null,null,null,null,null,"見積金額（税抜）の計"]
[null,null,"消費税額",null,null,null,null,null,null,null,null,"消費税額"]
[]
[null,null,"（除糞作業）",null,"↓現在保有の機械装置に「○」をプルダウン選択。",null,null,null,null,null,null,"（敷料散布作業）",null,"↓現在保有の機械装置に「○」をプルダウン選択。"]
[null,null,"①現在の状況",null,"全て未選択の場合は「バーンスクレーパーによらない除糞」が自動選択。",null,null,null,null,null,null,"①現在の状況",null,"全て未選択の場合は「人力による敷料散布」が自動選択。"]
[null,null,"バーンスクレーパーの保有：",null,null,null,null,null,null,null,null,"敷料散布機の保有："]
[null,null,"　家畜飼養管理機械装置の保有状況：",null,null,null,null,null,null,null,null,"　家畜飼養管理機械装置の保有状況："]
[null,null,"②導入希望の機械装置",null,null,null,null,null,null,null,null,"②導入希望の機械装置"]
[null,null,"機械装置の種類",null,"バーンスクレーパー",null,null,null,null,null,null,"機械装置の種類",null,"敷料散布機"]
[null,null,"機械装置のメーカー名",null,null,null,null,null,null,null,null,"機械装置のメーカー名"]
[null,null,"型式",null,null,null,null,null,null,null,null,"型式"]
[null,null,"台(式)数",null,null,null,null,null,null,null,null,"台(式)数"]
[null,null,"見積金額（税抜）の計",null,null,null,null,null,null,null,null,"見積金額（税抜）の計"]
[null,null,"消費税額",null,null,null,null,null,null,null,null,"消費税額"]
[]
[null,"注１：導入を希望する機械装置の種類ごとに必要事項を入力します。"]
[null,"　２：見積金額(税抜)の計は、消費税を除いた機械装置の導入価格の合計額を入力して下さい。"]
[]
[null,"３　機械装置の導入方式",null,null,null,null,null,null,null,null,"　※プルダウンで選択"]
[null,"注１：リース方式か、購入方式か記入する。"]
[null,"　２：購入方式を選択する場合は、別紙10のⅠの第１の12の（３）のアに取り組む経営体に限る。"]
[]
[null,"４　機械装置導入により想定される労働時間の削減効果",null,null,null,null,null,null,null,null,null,null,null,null,null,null,null,null,"申請②","申請②と③"]
[null,"（１）労働負担軽減経営体における削減労働時間",null,null,null,null,null,"チェックボタン押下後、自動計算されます",null,"時間","【自動計算】\n成雌牛１頭当たり削減労働時間×成雌牛頭数×1/1.2、小数点以下四捨五入",null,null,null,null,null,null,null,null,0]
[null,null,"※削減労働時間は、別添４の「労働時間削減効果分析」の第３「削減が期待される年間労働時間の考え方」に基づき算出します"]
[null,"（２）削減労働時間の検証方法",null,null,null,null,null,null,null,null,null,null,null,"　※プルダウンで選択"]
[]
[]
[]
[null,"５　機械装置の導入に伴う飼養管理の改善への取組"]
[null,null,null,null,null,null,null,null,null,"該当の取組がある場合、「○」をプルダウン選択↓","(参考)左記の回答根拠を\n示す添付資料の例",null,"(参考)\n係数"]
[null,null,"\n１　後継者",null,"①　今後とも安定的な経営継続が見込まれる経\n　営として(1)又は(2)に該当する経営\n　(1)主たる経営者が45歳未満\n　(2)主たる経営者が45歳以上の場合、後継者\n　　となる子息・子女又は概ね15歳以上の後\n　　継者の確保",null,null,null,null,null,"年齢の確認できるもの、家族労働協定、農業経営改善計画認定申請書、畜産経営診断結果、酪農・畜産専門紙や業界誌の紹介記事、経営コンクールの事例紹介資料　等",null,0.9]
[null,null,null,null,"②　①に該当しない場合、後継者の確保に向け\n　た取組の実施",null,null,null,null,null,"法人経営の定款　等",null,0.95]
[null,null,"２　乳用後継牛",null,"①　自家の牛群更新に必要な乳用牛を概ね自家\n　生産により確保する経営",null,null,null,null,null,"牛群検定成績表（乳検成績表）、畜産経営診断結果、酪農・畜産専門紙や業界誌の紹介記事、経営コンクールの事例紹介資料　等",null,0.9]
[null,null,null,null,"②　①以外の場合、自家の牛群更新に必要な乳\n　用牛の自家生産に取り組む経営",null,null,null,null,null,"酪農・畜産専門紙や業界誌の紹介記事、経営コンクールの事例紹介資料　等",null,0.95]
[null,null,"３　飼養管理",null,"飼養管理の高度化に取り組む経営",null,null,null,null,null,null,null,0.9]
[null,null,"３　その他",null,"①　地震・台風等の災害等に備えた、地域にお\n　ける互助協定に参加する経営",null,null,null,null,null,"災害互助協定書　等",null,0.95]
[null,null,"（複数回答可）",null,"②　畜産（酪農）従事者の疾病時等の経営継続に\n　備えた、地域における互助協定に参加する経営",null,null,null,null,null,"地域の酪農家が相互で締結している疾病時等の互助協定書　等",null,0.95]
[null,null,null,null,"③　地震・台風等により被災した経営",null,null,null,null,null,"罹災証明書、被災した時に撮影した畜産施設等の写真　等",null,0.9]
[null,null,null,null,"④　畜産・酪農収益力強化整備等特別対策事業\n　による補助を受けていない経営",null,null,null,null,null,null,null,0.95]
[null,null,null,null,"⑤　牛群検定に加入している経営",null,null,null,null,null,"牛群検定成績表（乳検成績表）",null,0.9]
[null,null,null,null,"⑥　供用期間の延長等を図るため、自給飼料の\n　飼料分析や技術者との意見交換を定期的に行\n　う経営",null,null,null,null,null,"自給飼料の分析結果、地域の支援組織や団体等が開催する自給飼料に関する勉強会の資料及び出席者名簿　等",null,0.95]
[null,null,null,null,"⑦　応援会議の構成員の中で、JGAP家畜・\n　畜産物の認証農場又は、GAP取得チャレンジシ\n　ステムの確認済み農場がある場合",null,null,null,null,null,"JGAP確認書(写)、GAP取得チャレンジの取組農場一覧リストの出力結果　等",null,0.95]
[null,null,null,null,"⑧　応援会議の構成員の中で、農場HACCP推\n　進農場として指定されている経営がある場合",null,null,null,null,null,"農場HACCP推進農場指定書(写)、農場HACCP認証書(写)　等",null,0.95]
[null,null,null,null,"⑨　環境と調和のとれた食料システムの確立のための環境負荷低減事業活動の促進等に関する法律（令和４年法律第 37 号。）に基づく環境負荷低減事業活動実施計画又は特定環境負荷低減事業活動実施計画の認定を受けている経営",null,null,null,null,null,null,null,0.9]
[null,null,null,null,"⑩　農業の生産性の向上のためのスマート農業技術の活用の促進に関する法律（令和６年法律第63号）に基づく生産方式革新実施計画の認定を受けている経営",null,null,null,null,null,"生産方式革新実施計画（写）及び農林水産大臣の認定を受けたことが確認できる資料（写）または生産方式革新実施計画（写）及び地方農政局等に対し認定の申請をしたことが確認できる資料（写）",null,0.8]
[null,null,null,null,"⑪　作業安全に関する取組を実施している経営",null,null,null,null,null,"「農作業安全シート」の提出",null,0.9]
[null,null,null,null,"⑫　その他、地域への貢献度が高い取組と事業\n　実施主体が特に認めた取組に参加する経営",null,null,null,null,null,"経営コンクールの表彰状　等",null,0.9]
[null,null,null,null,null,null,null,null,0]
[null,"６　労働時間削減効果分析の結果",null,null,null,null,null,"【自動計算】",null,null,"※チェックボタン押下後、自動計算されます",null,null,null,null,null,null,null,0]
[null,null,"補助金申請額（税抜）の合計額／削減が期待される年間総労働時間（時間）×係数／10000、小数点第４位を切り捨て"]
[null,null,"※費用対効果分析の結果は、別添４の「労働時間削減効果分析」の第２「評価点数の算出式」に基づき算出します。"]
[]
[]
[]
[]
[]
[]
[]
[]
[]
[]
[]
[]
["施設整備等要望の入力"]
[]
["１　機械装置の導入と一体的な施設整備の必要性"]
[]
[]
["２　施設整備の概要等"]
["（１）事業の内容等",null,null,null,null,null,null,"≪施設整備の要望入力≫"]
["≪（参考）導入機械装置≫",null,null,null,null,null,null,"事業内容",null,"建設面積の\n増加の\n有無",null,"\n","竣工予定","事業費","負担区分",null,null,"補助率","備考"]
[null,null,null,null,null,null,null,null,null,null,null,null,"又は","（税抜）"]
["機械装置名\n\n※該当する機械装置がない場合、直接入力して下さい。","機械価格","数量","単価","補助事業の\n活用状況\n\n",null,null,"種目","施設の\n構造、\n規格、\n能力等",null,"有の\n場合の","単価","完了年月日",null,"補助金","自己資金","その他"]
[null,"（税抜）","（式・台）","（付属機器\nを除く）",null,"他事業活用の場合の事業名",null,null,null,null,"面積\n（㎡）","（/㎡）"]
[null,null,null,null,"当該事業",null,"⇒",null,null,"無"]
[null,null,null,null,"当該事業",null,"⇒",null,null,"無"]
[null,null,null,null,"当該事業",null,"⇒",null,null,"無"]
[null,null,null,null,"当該事業",null,"⇒",null,null,"無"]
[null,null,null,null,"当該事業",null,"⇒",null,null,"無"]
[]
[]
[]
["（入力上の注意点）"]
["１．事業種目欄は、計画内容が明らかとなるよう細目に分けて具体的に記載すること。"]
["２．施設の整備が必要な機械装置は令和7年度に導入するものに限るとする。"]

{"sheet":"出力シート（ICT 別添6-1）","index":2,"n_rows":127,"n_cols":14,"rows_kept":127,"cut":false,"hidden":false,"merged":[[120,1,120,14],[121,1,121,14],[37,11,37,12],[79,13,79,15],[80,4,80,12],[80,13,80,15],[81,4,81,12],[81,13,81,15],[82,4,82,12],[82,13,82,15],[83,4,83,12],[83,13,83,15],[74,13,74,15],[75,4,75,12],[75,13,75,15],[76,4,76,12],[76,13,76,15],[77,4,77,12],[77,13,77,15],[78,4,78,12],[78,13,78,15],[39,4,39,5],[39,6,39,7],[40,2,40,3],[29,2,29,3],[29,4,29,5],[29,6,29,7],[29,10,29,11],[29,12,29,13],[30,2,30,3],[30,4,30,5],[2,9,2,14],[12,1,12,14],[14,1,14,14],[25,6,25,9],[27,2,28,3],[27,4,28,5],[27,6,28,7],[27,8,27,9],[27,10,28,11],[27,12,28,13],[4,11,4,14],[30,6,30,7],[30,10,30,11],[30,12,30,13],[33,10,33,11],[33,12,33,13],[37,6,37,9],[31,2,31,3],[31,4,31,5],[31,6,31,7],[31,10,31,11],[31,12,31,13],[32,2,32,3],[32,4,32,5],[32,6,32,7],[32,10,32,11],[32,12,32,13],[40,4,40,5],[40,6,40,7],[41,2,41,3],[41,4,41,5],[41,6,41,7],[33,2,33,3],[33,4,33,5],[33,6,33,7],[42,2,42,3],[42,4,42,5],[42,6,42,7],[43,2,43,3],[43,4,43,5],[43,6,43,7],[44,2,44,3],[44,4,44,5],[44,6,44,7],[52,2,52,3],[52,4,52,5],[52,6,52,7],[53,2,53,3],[53,4,53,5],[53,6,53,7],[48,6,48,9],[50,2,50,3],[50,4,50,5],[50,6,50,7],[51,2,51,3],[51,4,51,5],[51,6,51,7],[59,7,59,9],[72,2,72,3],[73,2,73,3],[54,2,54,3],[54,4,54,5],[54,6,54,7],[55,2,55,3],[55,4,55,5],[55,6,55,7],[66,5,66,13],[72,4,72,12],[72,13,72,15],[73,4,73,12],[73,13,73,15],[77,2,77,3],[78,2,78,3],[79,2,79,3],[74,2,74,3],[75,2,75,3],[76,2,76,3],[74,4,74,12],[79,4,79,12],[88,2,88,3],[88,4,88,12],[95,1,95,14],[96,1,96,14],[98,1,98,14],[99,1,99,14],[100,1,100,14],[101,1,101,14],[90,8,90,9],[80,2,80,3],[81,2,81,3],[87,2,87,3],[84,4,84,12],[84,13,84,15],[85,4,85,12],[85,13,85,15],[86,2,86,3],[86,4,86,12],[86,13,86,15],[87,4,87,12],[87,13,87,15],[88,13,88,15],[109,1,109,14],[110,1,110,14],[111,1,111,14],[112,1,112,14],[113,1,113,14],[102,1,102,14],[103,1,103,14],[104,1,104,14],[105,1,105,14],[106,1,106,14],[107,1,107,14],[50,12,50,13],[51,12,51,13],[52,12,52,13],[53,12,53,13],[123,1,123,14],[124,1,124,14],[125,1,125,14],[126,1,126,14],[122,1,122,14],[119,1,119,9],[50,10,50,11],[51,10,51,11],[52,10,52,11],[53,10,53,11],[54,10,54,11],[55,10,55,11],[54,12,54,13],[55,12,55,13],[114,1,114,14],[115,1,115,14],[116,1,116,14],[117,1,117,14],[118,1,118,14],[108,1,108,14],[39,10,39,11],[40,10,40,11],[41,10,41,11],[42,10,42,11],[43,10,43,11],[44,10,44,11],[48,11,48,12],[39,12,39,13],[40,12,40,13],[41,12,41,13],[42,12,42,13],[43,12,43,13],[44,12,44,13]]}
[null,"ICT化等機械装置等導入事業用"]
[null,"別添 6-1"]
[null,null,null,null,null,null,null,null,"都道府県名：",{"$f":"IF('機械装置入力シート（ICT肉用牛繁殖用）'!J14=0,\"\",'機械装置入力シート（ICT肉用牛繁殖用）'!J14)","v":""}]
[]
[null,null,null,null,null,null,null,null,null,null,null,{"$f":"IF('機械装置入力シート（ICT肉用牛繁殖用）'!$I$16=0,\"\",'機械装置入力シート（ICT肉用牛繁殖用）'!$I$16)","v":""}]
[null,{"$f":"IF('機械装置入力シート（ICT肉用牛繁殖用）'!$C$22=\"\",IF('機械装置入力シート（ICT肉用牛繁殖用）'!$B$18=\"\",\"\",'機械装置入力シート（ICT肉用牛繁殖用）'!$B$18),'機械装置入力シート（ICT肉用牛繁殖用）'!$C$22)","v":""}]
[null,{"$f":"IF(AND('機械装置入力シート（ICT肉用牛繁殖用）'!$C$23=\"\",'機械装置入力シート（ICT肉用牛繁殖用）'!$B$19=\"\"),\"\",IF('機械装置入力シート（ICT肉用牛繁殖用）'!$C$23=0,'機械装置入力シート（ICT肉用牛繁殖用）'!$B$19,'機械装置入力シート（ICT肉用牛繁殖用）'!$C$23)&\"  殿\")","v":""}]
[]
[null,null,null,null,null,null,null,"所在地",null,{"$f":"IF('機械装置入力シート（ICT肉用牛繁殖用）'!$I$21=0,\"\",'機械装置入力シート（ICT肉用牛繁殖用）'!$I$21)","v":""}]
[null,null,null,null,null,null,null,"法人名称又は氏名",null,{"$f":"IF('機械装置入力シート（ICT肉用牛繁殖用）'!I22=0,\"\",'機械装置入力シート（ICT肉用牛繁殖用）'!I22)","v":""}]
[null,null,null,null,null,null,null,"（法人の場合 代表者名）",null,{"$f":"IF('機械装置入力シート（ICT肉用牛繁殖用）'!I23=0,\"\",'機械装置入力シート（ICT肉用牛繁殖用）'!I23)","v":""}]
[]
[null,"ICT化等機械装置等導入事業　要望調査票"]
[]
[null,"ICT化等機械装置等導入事業において、労働負担軽減のための機械装置を導入したいので、要望書を提出する。"]
[]
[null,"１　経営の概況（令和７年５月１日現在）"]
[]
[null,null,"成雌牛頭数",null,{"$f":"IF('機械装置入力シート（ICT肉用牛繁殖用）'!E34=0,\"\",'機械装置入力シート（ICT肉用牛繁殖用）'!E34)","v":""},"頭"]
[null,null,"労働力",null,{"$f":"IF('機械装置入力シート（ICT肉用牛繁殖用）'!E35=0,\"\",'機械装置入力シート（ICT肉用牛繁殖用）'!E35)","v":""},"人"]
[null,null,"年間総労働時間",null,{"$f":"IF('機械装置入力シート（ICT肉用牛繁殖用）'!E36=0,\"\",'機械装置入力シート（ICT肉用牛繁殖用）'!E36)","v":""},"時間",null,"総労働時間で計算"]
[]
[null,"２　機械装置の導入関係"]
[null,"（１）搾乳方式の改善"]
[null,null,"①現在の状況"]
[null,null,null,null,null,"搾乳方式：",{"$f":"IF('機械装置入力シート（ICT肉用牛繁殖用）'!F41=0,\"\",'機械装置入力シート（ICT肉用牛繁殖用）'!F41)","v":""}]
[null,null,"②導入希望の機械装置"]
[null,null,"機械装置の種類",null,"搾乳ロボット",null,"ミルキングパーラー",null,"搾乳ユニット搬送レール",null,"ミルカー自動離脱装置",null,"自動乳頭洗浄機"]
[null,null,null,null,null,null,null,null,"自動","手動"]
[null,null,"機械装置のメーカー名",null,{"$f":"IF('機械装置入力シート（ICT肉用牛繁殖用）'!E48=0,\"\",'機械装置入力シート（ICT肉用牛繁殖用）'!E48)","v":""},null,{"$f":"IF('機械装置入力シート（ICT肉用牛繁殖用）'!G48=0,\"\",'機械装置入力シート（ICT肉用牛繁殖用）'!G48)","v":""},null,{"$f":"IF('機械装置入力シート（ICT肉用牛繁殖用）'!$I48=0,\"\",'機械装置入力シート（ICT肉用牛繁殖用）'!$I48)","v":""},{"$f":"IF('機械装置入力シート（ICT肉用牛繁殖用）'!$K48=0,\"\",'機械装置入力シート（ICT肉用牛繁殖用）'!$K48)","v":""},{"$f":"IF('機械装置入力シート（ICT肉用牛繁殖用）'!M48=0,\"\",'機械装置入力シート（ICT肉用牛繁殖用）'!M48)","v":""},null,{"$f":"IF('機械装置入力シート（ICT肉用牛繁殖用）'!P48=0,\"\",'機械装置入力シート（ICT肉用牛繁殖用）'!P48)","v":""}]
[null,null,"型式",null,{"$f":"IF('機械装置入力シート（ICT肉用牛繁殖用）'!E49=0,\"\",'機械装置入力シート（ICT肉用牛繁殖用）'!E49)","v":""},null,{"$f":"IF('機械装置入力シート（ICT肉用牛繁殖用）'!G49=0,\"\",'機械装置入力シート（ICT肉用牛繁殖用）'!G49)","v":""},null,{"$f":"IF('機械装置入力シート（ICT肉用牛繁殖用）'!$I49=0,\"\",'機械装置入力シート（ICT肉用牛繁殖用）'!$I49)","v":""},{"$f":"IF('機械装置入力シート（ICT肉用牛繁殖用）'!$K49=0,\"\",'機械装置入力シート（ICT肉用牛繁殖用）'!$K49)","v":""},{"$f":"IF('機械装置入力シート（ICT肉用牛繁殖用）'!M49=0,\"\",'機械装置入力シート（ICT肉用牛繁殖用）'!M49)","v":""},null,{"$f":"IF('機械装置入力シート（ICT肉用牛繁殖用）'!P49=0,\"\",'機械装置入力シート（ICT肉用牛繁殖用）'!P49)","v":""}]
[null,null,"台数",null,{"$f":"IF('機械装置入力シート（ICT肉用牛繁殖用）'!E50=0,\"\",'機械装置入力シート（ICT肉用牛繁殖用）'!E50)","v":""},null,{"$f":"IF('機械装置入力シート（ICT肉用牛繁殖用）'!G50=0,\"\",'機械装置入力シート（ICT肉用牛繁殖用）'!G50)","v":""},null,{"$f":"IF('機械装置入力シート（ICT肉用牛繁殖用）'!$I50=0,\"\",'機械装置入力シート（ICT肉用牛繁殖用）'!$I50)","v":""},{"$f":"IF('機械装置入力シート（ICT肉用牛繁殖用）'!$K50=0,\"\",'機械装置入力シート（ICT肉用牛繁殖用）'!$K50)","v":""},{"$f":"IF('機械装置入力シート（ICT肉用牛繁殖用）'!M50=0,\"\",'機械装置入力シート（ICT肉用牛繁殖用）'!M50)","v":""},null,{"$f":"IF('機械装置入力シート（ICT肉用牛繁殖用）'!P50=0,\"\",'機械装置入力シート（ICT肉用牛繁殖用）'!P50)","v":""}]
[null,null,"本体価格（税抜）",null,{"$f":"IF('機械装置入力シート（ICT肉用牛繁殖用）'!E51=0,\"\",'機械装置入力シート（ICT肉用牛繁殖用）'!E51)","v":""},null,{"$f":"IF('機械装置入力シート（ICT肉用牛繁殖用）'!G51=0,\"\",'機械装置入力シート（ICT肉用牛繁殖用）'!G51)","v":""},null,{"$f":"IF('機械装置入力シート（ICT肉用牛繁殖用）'!$I51=0,\"\",'機械装置入力シート（ICT肉用牛繁殖用）'!$I51)","v":""},{"$f":"IF('機械装置入力シート（ICT肉用牛繁殖用）'!$K51=0,\"\",'機械装置入力シート（ICT肉用牛繁殖用）'!$K51)","v":""},{"$f":"IF('機械装置入力シート（ICT肉用牛繁殖用）'!M51=0,\"\",'機械装置入力シート（ICT肉用牛繁殖用）'!M51)","v":""},null,{"$f":"IF('機械装置入力シート（ICT肉用牛繁殖用）'!P51=0,\"\",'機械装置入力シート（ICT肉用牛繁殖用）'!P51)","v":""}]
[null,null,"消費税額",null,{"$f":"IF('機械装置入力シート（ICT肉用牛繁殖用）'!E52=0,\"\",'機械装置入力シート（ICT肉用牛繁殖用）'!E52)","v":""},null,{"$f":"IF('機械装置入力シート（ICT肉用牛繁殖用）'!G52=0,\"\",'機械装置入力シート（ICT肉用牛繁殖用）'!G52)","v":""},null,{"$f":"IF('機械装置入力シート（ICT肉用牛繁殖用）'!$I52=0,\"\",'機械装置入力シート（ICT肉用牛繁殖用）'!$I52)","v":""},{"$f":"IF('機械装置入力シート（ICT肉用牛繁殖用）'!$K52=0,\"\",'機械装置入力シート（ICT肉用牛繁殖用）'!$K52)","v":""},{"$f":"IF('機械装置入力シート（ICT肉用牛繁殖用）'!M52=0,\"\",'機械装置入力シート（ICT肉用牛繁殖用）'!M52)","v":""},null,{"$f":"IF('機械装置入力シート（ICT肉用牛繁殖用）'!P52=0,\"\",'機械装置入力シート（ICT肉用牛繁殖用）'!P52)","v":""}]
[]
[null,"（１）給餌方式の改善"]
[null,null,"①現在の状況"]
[null,null,null,null,null,"飼料給与関係機械装置の保有状況：",{"$f":"IF('機械装置入力シート（ICT肉用牛繁殖用）'!G59=0,\"\",'機械装置入力シート（ICT肉用牛繁殖用）'!G59)","v":""}]
[null,null,"②導入希望の機械装置"]
[null,null,"機械装置の種類",null,"自動給餌機\n（濃厚・粗飼料）",null,"自動給餌機（濃厚飼料）",null,"餌寄せロボット","ほ乳ロボット","自走式配餌車",null,"移動式ほ乳機"]
[null,null,"機械装置のメーカー名",null,{"$f":"IF(1=1,IF('機械装置入力シート（ICT肉用牛繁殖用）'!E62=0,\"\",'機械装置入力シート（ICT肉用牛繁殖用）'!E62),\"\")","v":""},null,{"$f":"IF(1=1,IF('機械装置入力シート（ICT肉用牛繁殖用）'!G62=0,\"\",'機械装置入力シート（ICT肉用牛繁殖用）'!G62),\"\")","v":""},null,{"$f":"IF(1=1,IF('機械装置入力シート（ICT肉用牛繁殖用）'!I62=0,\"\",'機械装置入力シート（ICT肉用牛繁殖用）'!I62),\"\")","v":""},{"$f":"IF(1=1,IF('機械装置入力シート（ICT肉用牛繁殖用）'!$N62=0,\"\",'機械装置入力シート（ICT肉用牛繁殖用）'!$N62),\"\")","v":""},{"$f":"IF(1=1,IF('機械装置入力シート（ICT肉用牛繁殖用）'!$K62=0,\"\",'機械装置入力シート（ICT肉用牛繁殖用）'!$K62),\"\")","v":""},null,{"$f":"IF(1=1,IF('機械装置入力シート（ICT肉用牛繁殖用）'!$P62=0,\"\",'機械装置入力シート（ICT肉用牛繁殖用）'!$P62),\"\")","v":""},{"$f":"IF('機械装置入力シート（ICT肉用牛繁殖用）'!$N62=0,\"\",'機械装置入力シート（ICT肉用牛繁殖用）'!$N62)","v":""}]
[null,null,"型式",null,{"$f":"IF(1=1,IF('機械装置入力シート（ICT肉用牛繁殖用）'!E63=0,\"\",'機械装置入力シート（ICT肉用牛繁殖用）'!E63),\"\")","v":""},null,{"$f":"IF(1=1,IF('機械装置入力シート（ICT肉用牛繁殖用）'!G63=0,\"\",'機械装置入力シート（ICT肉用牛繁殖用）'!G63),\"\")","v":""},null,{"$f":"IF(1=1,IF('機械装置入力シート（ICT肉用牛繁殖用）'!I63=0,\"\",'機械装置入力シート（ICT肉用牛繁殖用）'!I63),\"\")","v":""},{"$f":"IF(1=1,IF('機械装置入力シート（ICT肉用牛繁殖用）'!$N63=0,\"\",'機械装置入力シート（ICT肉用牛繁殖用）'!$N63),\"\")","v":""},{"$f":"IF(1=1,IF('機械装置入力シート（ICT肉用牛繁殖用）'!$K63=0,\"\",'機械装置入力シート（ICT肉用牛繁殖用）'!$K63),\"\")","v":""},null,{"$f":"IF(1=1,IF('機械装置入力シート（ICT肉用牛繁殖用）'!$P63=0,\"\",'機械装置入力シート（ICT肉用牛繁殖用）'!$P63),\"\")","v":""},{"$f":"IF('機械装置入力シート（ICT肉用牛繁殖用）'!$N63=0,\"\",'機械装置入力シート（ICT肉用牛繁殖用）'!$N63)","v":""}]
[null,null,"台数",null,{"$f":"IF(1=1,IF('機械装置入力シート（ICT肉用牛繁殖用）'!E64=0,\"\",'機械装置入力シート（ICT肉用牛繁殖用）'!E64),\"\")","v":""},null,{"$f":"IF(1=1,IF('機械装置入力シート（ICT肉用牛繁殖用）'!G64=0,\"\",'機械装置入力シート（ICT肉用牛繁殖用）'!G64),\"\")","v":""},null,{"$f":"IF(1=1,IF('機械装置入力シート（ICT肉用牛繁殖用）'!I64=0,\"\",'機械装置入力シート（ICT肉用牛繁殖用）'!I64),\"\")","v":""},{"$f":"IF(1=1,IF('機械装置入力シート（ICT肉用牛繁殖用）'!$N64=0,\"\",'機械装置入力シート（ICT肉用牛繁殖用）'!$N64),\"\")","v":""},{"$f":"IF(1=1,IF('機械装置入力シート（ICT肉用牛繁殖用）'!$K64=0,\"\",'機械装置入力シート（ICT肉用牛繁殖用）'!$K64),\"\")","v":""},null,{"$f":"IF(1=1,IF('機械装置入力シート（ICT肉用牛繁殖用）'!$P64=0,\"\",'機械装置入力シート（ICT肉用牛繁殖用）'!$P64),\"\")","v":""},{"$f":"IF('機械装置入力シート（ICT肉用牛繁殖用）'!$N64=0,\"\",'機械装置入力シート（ICT肉用牛繁殖用）'!$N64)","v":""}]
[null,null,"本体価格（税抜)",null,{"$f":"IF(1=1,IF('機械装置入力シート（ICT肉用牛繁殖用）'!E65=0,\"\",'機械装置入力シート（ICT肉用牛繁殖用）'!E65),\"\")","v":""},null,{"$f":"IF(1=1,IF('機械装置入力シート（ICT肉用牛繁殖用）'!G65=0,\"\",'機械装置入力シート（ICT肉用牛繁殖用）'!G65),\"\")","v":""},null,{"$f":"IF(1=1,IF('機械装置入力シート（ICT肉用牛繁殖用）'!I65=0,\"\",'機械装置入力シート（ICT肉用牛繁殖用）'!I65),\"\")","v":""},{"$f":"IF(1=1,IF('機械装置入力シート（ICT肉用牛繁殖用）'!$N65=0,\"\",'機械装置入力シート（ICT肉用牛繁殖用）'!$N65),\"\")","v":""},{"$f":"IF(1=1,IF('機械装置入力シート（ICT肉用牛繁殖用）'!$K65=0,\"\",'機械装置入力シート（ICT肉用牛繁殖用）'!$K65),\"\")","v":""},null,{"$f":"IF(1=1,IF('機械装置入力シート（ICT肉用牛繁殖用）'!$P65=0,\"\",'機械装置入力シート（ICT肉用牛繁殖用）'!$P65),\"\")","v":""},{"$f":"IF('機械装置入力シート（ICT肉用牛繁殖用）'!$N65=0,\"\",'機械装置入力シート（ICT肉用牛繁殖用）'!$N65)","v":""}]
[null,null,"消費税額",null,{"$f":"IF(1=1,IF('機械装置入力シート（ICT肉用牛繁殖用）'!E66=0,\"\",'機械装置入力シート（ICT肉用牛繁殖用）'!E66),\"\")","v":""},null,{"$f":"IF(1=1,IF('機械装置入力シート（ICT肉用牛繁殖用）'!G66=0,\"\",'機械装置入力シート（ICT肉用牛繁殖用）'!G66),\"\")","v":""},null,{"$f":"IF(1=1,IF('機械装置入力シート（ICT肉用牛繁殖用）'!I66=0,\"\",'機械装置入力シート（ICT肉用牛繁殖用）'!I66),\"\")","v":""},{"$f":"IF(1=1,IF('機械装置入力シート（ICT肉用牛繁殖用）'!$N66=0,\"\",'機械装置入力シート（ICT肉用牛繁殖用）'!$N66),\"\")","v":""},{"$f":"IF(1=1,IF('機械装置入力シート（ICT肉用牛繁殖用）'!$K66=0,\"\",'機械装置入力シート（ICT肉用牛繁殖用）'!$K66),\"\")","v":""},null,{"$f":"IF(1=1,IF('機械装置入力シート（ICT肉用牛繁殖用）'!$P66=0,\"\",'機械装置入力シート（ICT肉用牛繁殖用）'!$P66),\"\")","v":""},{"$f":"IF('機械装置入力シート（ICT肉用牛繁殖用）'!$N66=0,\"\",'機械装置入力シート（ICT肉用牛繁殖用）'!$N66)","v":""}]
[]
[null,"（２）家畜飼養管理の改善"]
[null,null,"①現在の状況"]
[null,null,null,null,null,"家畜飼養管理機械装置の保有状況："]
[null,null,"②導入希望の機械装置"]
[null,null,"機械装置の種類",null,"発情発見装置",null,"分娩監視装置",null,"バーンスクレーパー","敷料散布機","行動監視装置\n（繁殖管理）",null,"行動監視装置（放牧）"]
[null,null,"機械装置のメーカー名",null,{"$f":"IF(1=1,IF('機械装置入力シート（ICT肉用牛繁殖用）'!E77=0,\"\",'機械装置入力シート（ICT肉用牛繁殖用）'!E77),\"\")","v":""},null,{"$f":"IF(1=1,IF('機械装置入力シート（ICT肉用牛繁殖用）'!G77=0,\"\",'機械装置入力シート（ICT肉用牛繁殖用）'!G77),\"\")","v":""},null,{"$f":"IF(1=1,IF('機械装置入力シート（ICT肉用牛繁殖用）'!$E89=0,\"\",'機械装置入力シート（ICT肉用牛繁殖用）'!$E89),\"\")","v":""},{"$f":"IF(1=1,IF('機械装置入力シート（ICT肉用牛繁殖用）'!$N89=0,\"\",'機械装置入力シート（ICT肉用牛繁殖用）'!$N89),\"\")","v":""},{"$f":"IF(1=1,IF('機械装置入力シート（ICT肉用牛繁殖用）'!I77=0,\"\",'機械装置入力シート（ICT肉用牛繁殖用）'!I77),\"\")","v":""},null,{"$f":"IF(1=1,IF('機械装置入力シート（ICT肉用牛繁殖用）'!N77=0,\"\",'機械装置入力シート（ICT肉用牛繁殖用）'!N77),\"\")","v":""}]
[null,null,"型式",null,{"$f":"IF(1=1,IF('機械装置入力シート（ICT肉用牛繁殖用）'!E78=0,\"\",'機械装置入力シート（ICT肉用牛繁殖用）'!E78),\"\")","v":""},null,{"$f":"IF(1=1,IF('機械装置入力シート（ICT肉用牛繁殖用）'!G78=0,\"\",'機械装置入力シート（ICT肉用牛繁殖用）'!G78),\"\")","v":""},null,{"$f":"IF(1=1,IF('機械装置入力シート（ICT肉用牛繁殖用）'!$E90=0,\"\",'機械装置入力シート（ICT肉用牛繁殖用）'!$E90),\"\")","v":""},{"$f":"IF(1=1,IF('機械装置入力シート（ICT肉用牛繁殖用）'!$N90=0,\"\",'機械装置入力シート（ICT肉用牛繁殖用）'!$N90),\"\")","v":""},{"$f":"IF(1=1,IF('機械装置入力シート（ICT肉用牛繁殖用）'!I78=0,\"\",'機械装置入力シート（ICT肉用牛繁殖用）'!I78),\"\")","v":""},null,{"$f":"IF(1=1,IF('機械装置入力シート（ICT肉用牛繁殖用）'!N78=0,\"\",'機械装置入力シート（ICT肉用牛繁殖用）'!N78),\"\")","v":""}]
[null,null,"台数",null,{"$f":"IF(1=1,IF('機械装置入力シート（ICT肉用牛繁殖用）'!E79=0,\"\",'機械装置入力シート（ICT肉用牛繁殖用）'!E79),\"\")","v":""},null,{"$f":"IF(1=1,IF('機械装置入力シート（ICT肉用牛繁殖用）'!G79=0,\"\",'機械装置入力シート（ICT肉用牛繁殖用）'!G79),\"\")","v":""},null,{"$f":"IF(1=1,IF('機械装置入力シート（ICT肉用牛繁殖用）'!$E91=0,\"\",'機械装置入力シート（ICT肉用牛繁殖用）'!$E91),\"\")","v":""},{"$f":"IF(1=1,IF('機械装置入力シート（ICT肉用牛繁殖用）'!$N91=0,\"\",'機械装置入力シート（ICT肉用牛繁殖用）'!$N91),\"\")","v":""},{"$f":"IF(1=1,IF('機械装置入力シート（ICT肉用牛繁殖用）'!I79=0,\"\",'機械装置入力シート（ICT肉用牛繁殖用）'!I79),\"\")","v":""},null,{"$f":"IF(1=1,IF('機械装置入力シート（ICT肉用牛繁殖用）'!N79=0,\"\",'機械装置入力シート（ICT肉用牛繁殖用）'!N79),\"\")","v":""}]
[null,null,"本体価格（税抜）",null,{"$f":"IF(1=1,IF('機械装置入力シート（ICT肉用牛繁殖用）'!E80=0,\"\",'機械装置入力シート（ICT肉用牛繁殖用）'!E80),\"\")","v":""},null,{"$f":"IF(1=1,IF('機械装置入力シート（ICT肉用牛繁殖用）'!G80=0,\"\",'機械装置入力シート（ICT肉用牛繁殖用）'!G80),\"\")","v":""},null,{"$f":"IF(1=1,IF('機械装置入力シート（ICT肉用牛繁殖用）'!$E92=0,\"\",'機械装置入力シート（ICT肉用牛繁殖用）'!$E92),\"\")","v":""},{"$f":"IF(1=1,IF('機械装置入力シート（ICT肉用牛繁殖用）'!$N92=0,\"\",'機械装置入力シート（ICT肉用牛繁殖用）'!$N92),\"\")","v":""},{"$f":"IF(1=1,IF('機械装置入力シート（ICT肉用牛繁殖用）'!I80=0,\"\",'機械装置入力シート（ICT肉用牛繁殖用）'!I80),\"\")","v":""},null,{"$f":"IF(1=1,IF('機械装置入力シート（ICT肉用牛繁殖用）'!N80=0,\"\",'機械装置入力シート（ICT肉用牛繁殖用）'!N80),\"\")","v":""}]
[null,null,"消費税額",null,{"$f":"IF(1=1,IF('機械装置入力シート（ICT肉用牛繁殖用）'!E81=0,\"\",'機械装置入力シート（ICT肉用牛繁殖用）'!E81),\"\")","v":""},null,{"$f":"IF(1=1,IF('機械装置入力シート（ICT肉用牛繁殖用）'!G81=0,\"\",'機械装置入力シート（ICT肉用牛繁殖用）'!G81),\"\")","v":""},null,{"$f":"IF(1=1,IF('機械装置入力シート（ICT肉用牛繁殖用）'!$E93=0,\"\",'機械装置入力シート（ICT肉用牛繁殖用）'!$E93),\"\")","v":""},{"$f":"IF(1=1,IF('機械装置入力シート（ICT肉用牛繁殖用）'!$N93=0,\"\",'機械装置入力シート（ICT肉用牛繁殖用）'!$N93),\"\")","v":""},{"$f":"IF(1=1,IF('機械装置入力シート（ICT肉用牛繁殖用）'!I81=0,\"\",'機械装置入力シート（ICT肉用牛繁殖用）'!I81),\"\")","v":""},null,{"$f":"IF(1=1,IF('機械装置入力シート（ICT肉用牛繁殖用）'!N81=0,\"\",'機械装置入力シート（ICT肉用牛繁殖用）'!N81),\"\")","v":""}]
[]
[]
[]
[null,"３　機械装置の導入方式",null,null,null,null,null,{"$f":"IF('機械装置入力シート（ICT肉用牛繁殖用）'!H98=0,\"\",'機械装置入力シート（ICT肉用牛繁殖用）'!H98)","v":""}]
[]
[]
[]
[null,"４　機械装置導入により想定される労働時間の削減効果"]
[null,"（１）労働負担軽減経営体における削減労働時間",null,null,null,null,null,null,{"$f":"IF('機械装置入力シート（ICT肉用牛繁殖用）'!I103=0,\"\",'機械装置入力シート（ICT肉用牛繁殖用）'!I103)","v":""},"時間"]
[]
[null,"（２）削減労働時間の検証方法",null,null,null,{"$f":"IF('機械装置入力シート（ICT肉用牛繁殖用）'!F105=0,\"\",'機械装置入力シート（ICT肉用牛繁殖用）'!F105)","v":""}]
[]
[]
[]
[null,"５　機械装置の導入に伴う飼養管理の改善への取組"]
[null,null,"（該当する項目に○を付ける）"]
[null,null,"\n１　後継者",null,"①　今後とも安定的な経営継続が見込まれる経営として(1)又は(2)に該当する経営\n(1)主たる経営者が45歳未満\n(2)主たる経営者が45歳以上の場合、後継者となる子息・子女又は概ね15歳以上の後継者の確保",null,null,null,null,null,null,null,null,{"$f":"IF('機械装置入力シート（ICT肉用牛繁殖用）'!J111=0,\"\",'機械装置入力シート（ICT肉用牛繁殖用）'!J111)","v":""}]
[null,null,null,null,"②　①に該当しない場合、後継者の確保に向けた取組の実施",null,null,null,null,null,null,null,null,{"$f":"IF('機械装置入力シート（ICT肉用牛繁殖用）'!J112=0,\"\",'機械装置入力シート（ICT肉用牛繁殖用）'!J112)","v":""}]
[null,null,"２　乳用後継牛",null,"①　自家の牛群更新に必要な乳用牛を概ね自家生産により確保する経営",null,null,null,null,null,null,null,null,{"$f":"IF('機械装置入力シート（ICT肉用牛繁殖用）'!J113=0,\"\",'機械装置入力シート（ICT肉用牛繁殖用）'!J113)","v":""}]
[null,null,null,null,"②　①以外の場合、自家の牛群更新に必要な乳用牛の自家生産に取り組む経営",null,null,null,null,null,null,null,null,{"$f":"IF('機械装置入力シート（ICT肉用牛繁殖用）'!J114=0,\"\",'機械装置入力シート（ICT肉用牛繁殖用）'!J114)","v":""}]
[null,null,"３　飼養管理",null,"飼養管理の高度化に取り組む経営",null,null,null,null,null,null,null,null,{"$f":"IF('機械装置入力シート（ICT肉用牛繁殖用）'!J115=0,\"\",'機械装置入力シート（ICT肉用牛繁殖用）'!J115)","v":""}]
[null,null,"３　その他",null,"①　地震・台風等の災害等に備えた、地域における互助協定に参加する経営",null,null,null,null,null,null,null,null,{"$f":"IF('機械装置入力シート（ICT肉用牛繁殖用）'!J116=0,\"\",'機械装置入力シート（ICT肉用牛繁殖用）'!J116)","v":""}]
[null,null,"（複数回答可）",null,"②　畜産（酪農）従事者の疾病時等の経営継続に備えた、地域における互助協定に参加する経営",null,null,null,null,null,null,null,null,{"$f":"IF('機械装置入力シート（ICT肉用牛繁殖用）'!J117=0,\"\",'機械装置入力シート（ICT肉用牛繁殖用）'!J117)","v":""}]
[null,null,null,null,"③　地震・台風等により被災した経営",null,null,null,null,null,null,null,null,{"$f":"IF('機械装置入力シート（ICT肉用牛繁殖用）'!J118=0,\"\",'機械装置入力シート（ICT肉用牛繁殖用）'!J118)","v":""}]
[null,null,null,null,"④　畜産・酪農収益力強化整備等特別対策事業による補助を受けていない経営",null,null,null,null,null,null,null,null,{"$f":"IF('機械装置入力シート（ICT肉用牛繁殖用）'!J119=0,\"\",'機械装置入力シート（ICT肉用牛繁殖用）'!J119)","v":""}]
[null,null,null,null,"⑤　牛群検定に加入している経営",null,null,null,null,null,null,null,null,{"$f":"IF('機械装置入力シート（ICT肉用牛繁殖用）'!J120=0,\"\",'機械装置入力シート（ICT肉用牛繁殖用）'!J120)","v":""}]
[null,null,null,null,"⑥　供用期間の延長等を図るため、自給飼料の飼料分析や技術者との意見交換を定期的に行う経営",null,null,null,null,null,null,null,null,{"$f":"IF('機械装置入力シート（ICT肉用牛繁殖用）'!J121=0,\"\",'機械装置入力シート（ICT肉用牛繁殖用）'!J121)","v":""}]
[null,null,null,null,"⑦　応援会議の構成員の中で、JGAP家畜・畜産物の認証農場又は、GAP取得チャレンジシステムの\n　確認済み農場がある場合",null,null,null,null,null,null,null,null,{"$f":"IF('機械装置入力シート（ICT肉用牛繁殖用）'!J122=0,\"\",'機械装置入力シート（ICT肉用牛繁殖用）'!J122)","v":""}]
[null,null,null,null,"⑧　応援会議の構成員の中で、農場HACCP推進農場として指定される経営がある場合",null,null,null,null,null,null,null,null,{"$f":"IF('機械装置入力シート（ICT肉用牛繁殖用）'!J123=0,\"\",'機械装置入力シート（ICT肉用牛繁殖用）'!J123)","v":""}]
[null,null,null,null,"⑨　環境と調和のとれた食料システムの確立のための環境負荷低減事業活動の促進等に関する\n　法律（令和４年法律第 37 号。）に基づく環境負荷低減事業活動実施計画又は特定環境負荷\n　低減事業活動実施計画の認定を受けている経営",null,null,null,null,null,null,null,null,{"$f":"IF('機械装置入力シート（ICT肉用牛繁殖用）'!J124=0,\"\",'機械装置入力シート（ICT肉用牛繁殖用）'!J124)","v":""}]
[null,null,null,null,"⑩　農業の生産性の向上のためのスマート農業技術の活用の促進に関する法律（令和６年法律\n　第63号）に基づく生産方式革新実施計画の認定を受けている経営",null,null,null,null,null,null,null,null,{"$f":"IF('機械装置入力シート（ICT肉用牛繁殖用）'!J125=0,\"\",'機械装置入力シート（ICT肉用牛繁殖用）'!J125)","v":""}]
[null,null,null,null,"⑪　作業安全に関する取組を実施している経営",null,null,null,null,null,null,null,null,{"$f":"IF('機械装置入力シート（ICT肉用牛繁殖用）'!J126=0,\"\",'機械装置入力シート（ICT肉用牛繁殖用）'!J126)","v":""}]
[null,null,null,null,"⑫　その他、地域への貢献度が高い取組と事業実施主体が特に認めた取組に参加する経営",null,null,null,null,null,null,null,null,{"$f":"IF('機械装置入力シート（ICT肉用牛繁殖用）'!J127=0,\"\",'機械装置入力シート（ICT肉用牛繁殖用）'!J127)","v":""}]
[]
[null,"６　労働時間削減効果分析の結果",null,null,null,null,null,null,{"$f":"IF('機械装置入力シート（ICT肉用牛繁殖用）'!I129=0,\"\",'機械装置入力シート（ICT肉用牛繁殖用）'!I129)","v":""}]
[]
[null,"７　施設整備関係　別紙1の通り"]
[]
[]
[]
[null,"補助金及び要望調査に関する確認書"]
[]
[]
[null,"　本事業の要望に当たり、交付要綱、実施要綱、実施要綱別紙等をよく読み内容を理解しました。"]
[null,"　特に、次の事項に対し、相違があった場合は、事業参加承認後であっても補助金の一部もしくは全部を受給できなくなり、"]
[null,"　または補助金の支払後においては補助金の一部もしくは全部を返還することを承諾のうえ、要望します。"]
[]
[]
[null,"１　補助金に関係する全ての提出書類において、如何なる理由があってもその内容に虚偽の記載は行いません。"]
[]
[null,"２　一般競争入札又は３者以上の見積もりによる補助対象機械装置の最低価格を補助対象経費として申請します。"]
[null,"　また、補助対象経費は補助対象機械装置の本体価格のみであり、それ以外の経費を混同していません。"]
[null,"　"]
[null,"３　既に所有している機械装置を下取りさせて機械装置を導入する場合は、導入する機械装置の本体価格から当該機械装置の"]
[null,"　下取り価格を控除した額を補助対象経費として申請します。"]
[]
[null,"４　事業実施主体が事業参加申請を承認する以前に、既に発注等を行った場合は補助金の交付対象とならないことを承諾します。"]
[null,"　また、導入方式の場合は、補助金の支払いは、機械装置の導入、支払い及び所有権の移転が完了し、実績報告書を提出した後"]
[null,"　一定期間を要することを承諾します。"]
[null,"　"]
[]
[null,"５　補助事業により取得した機械装置を、処分制限期間内に処分しようとするときは、事前に処分内容等について事業実施主体の"]
[null,"　承認を受けます。また、その際、補助金の返還が発生する場合があることを承諾します。"]
[null,{"$f":"IF('機械装置入力シート（ICT肉用牛繁殖用）'!I16=0,\"\",'機械装置入力シート（ICT肉用牛繁殖用）'!I16)","v":""}]
[null,"６　機械装置の導入とともに生産方式転換のための一体的な施設整備を実施する場合は、上記の内容に準じて実施することに"]
[null,"　承諾します。"]
[null,"　"]
[]
[null,{"$f":"IF('機械装置入力シート（ICT肉用牛繁殖用）'!I16=0,\"\",'機械装置入力シート（ICT肉用牛繁殖用）'!I16)","v":""}]
[null,{"$f":"IF('機械装置入力シート（ICT肉用牛繁殖用）'!I21=0,\"\",'機械装置入力シート（ICT肉用牛繁殖用）'!I21)","v":""}]
[null,{"$f":"IF('機械装置入力シート（ICT肉用牛繁殖用）'!I22<>\"\",'機械装置入力シート（ICT肉用牛繁殖用）'!I22 & \" \" & '機械装置入力シート（ICT肉用牛繁殖用）'!I23 & \"\",\"\")","v":""}]

{"sheet":"出力シート（ICT 別添6-1別紙）","index":3,"n_rows":17,"n_cols":14,"rows_kept":17,"cut":false,"hidden":false,"merged":[[1,3,1,5],[1,7,1,9],[4,0,4,12],[8,0,9,1],[8,5,9,7],[8,8,11,8],[8,9,9,11],[8,12,11,13],[10,0,11,0],[10,5,11,5],[10,6,11,6],[10,7,11,7],[10,9,11,9]]}
["別記様式第１号－１の別紙１　ICT化等機械装置等導入事業　施設整備要望調査票"]
["都道府県：",{"$f":"IF(1=1,IF('機械装置入力シート（ICT肉用牛繁殖用）'!J14=0,\"\",'機械装置入力シート（ICT肉用牛繁殖用）'!J14),\"\")","v":""},"応援会議：",{"$f":"IF(1=1,IF('機械装置入力シート（ICT肉用牛繁殖用）'!C22=0,'機械装置入力シート（ICT肉用牛繁殖用）'!B18,'機械装置入力シート（ICT肉用牛繁殖用）'!C22),\"\")","v":0},null,null,"法人名称\n又は氏名：",{"$f":"IF(1=1,IF('機械装置入力シート（ICT肉用牛繁殖用）'!I22=0,\"\",'機械装置入力シート（ICT肉用牛繁殖用）'!I22),\"\")","v":""}]
[]
["１　機械装置の導入と一体的な施設整備の必要性"]
[{"$f":"IF(1=1,IF('機械装置入力シート（ICT肉用牛繁殖用）'!A147=0,\"\",'機械装置入力シート（ICT肉用牛繁殖用）'!A147),\"\")","v":""}]
[]
["２　施設整備の概要等"]
["（１）事業の内容等"]
["事業内容",null,"竣工予定","事業費",null,"負担区分",null,null,"補助率","（参考）導入機械装置",null,null,"備考"]
[null,null,"又は","（税抜）"]
["種目","施設の構造、","完了年月日",null,"単価","補助金","自己資金","その他",null,"機械装置名","機械価格","単価"]
[null,"規格、能力等",null,null,"（/㎡）",null,null,null,null,null,"（税抜）","（付属機器を除く）"]
[{"$f":"IF(1=1,IF('機械装置入力シート（ICT肉用牛繁殖用）'!H155=0,\"\",'機械装置入力シート（ICT肉用牛繁殖用）'!H155),\"\")","v":""},{"$f":"IF(1=1,IF('機械装置入力シート（ICT肉用牛繁殖用）'!I155=0,\"\",'機械装置入力シート（ICT肉用牛繁殖用）'!I155),\"\")","v":""},{"$f":"IF(1=1,IF('機械装置入力シート（ICT肉用牛繁殖用）'!M155=0,\"\",'機械装置入力シート（ICT肉用牛繁殖用）'!M155),\"\")","v":""},{"$f":"IF(1=1,IF('機械装置入力シート（ICT肉用牛繁殖用）'!N155=0,\"\",'機械装置入力シート（ICT肉用牛繁殖用）'!N155),\"\")","v":""},{"$f":"IF(1=1,IF('機械装置入力シート（ICT肉用牛繁殖用）'!L155=0,\"\",'機械装置入力シート（ICT肉用牛繁殖用）'!L155),\"\")","v":""},{"$f":"IF(1=1,IF('機械装置入力シート（ICT肉用牛繁殖用）'!O155=0,\"\",'機械装置入力シート（ICT肉用牛繁殖用）'!O155),\"\")","v":""},{"$f":"IF(1=1,IF('機械装置入力シート（ICT肉用牛繁殖用）'!P155=0,\"\",'機械装置入力シート（ICT肉用牛繁殖用）'!P155),\"\")","v":""},{"$f":"IF(1=1,IF('機械装置入力シート（ICT肉用牛繁殖用）'!Q155=0,\"\",'機械装置入力シート（ICT肉用牛繁殖用）'!Q155),\"\")","v":""},{"$f":"IF(1=1,IF('機械装置入力シート（ICT肉用牛繁殖用）'!R155=0,\"\",'機械装置入力シート（ICT肉用牛繁殖用）'!R155),\"\")","v":""},{"$f":"IF(1=1,IF('機械装置入力シート（ICT肉用牛繁殖用）'!A155=0,\"\",'機械装置入力シート（ICT肉用牛繁殖用）'!A155),\"\")","v":""},{"$f":"IF(1=1,IF('機械装置入力シート（ICT肉用牛繁殖用）'!B155=0,\"\",'機械装置入力シート（ICT肉用牛繁殖用）'!B155),\"\")","v":""},{"$f":"IF(1=1,IF('機械装置入力シート（ICT肉用牛繁殖用）'!D155=0,\"\",'機械装置入力シート（ICT肉用牛繁殖用）'!D155),\"\")","v":""},{"$f":"IF(1=1,IF('機械装置入力シート（ICT肉用牛繁殖用）'!$E155=0,\"\",'機械装置入力シート（ICT肉用牛繁殖用）'!$E155),\"\")","v":"当該事業"},{"$f":"IF(1=1,IF('機械装置入力シート（ICT肉用牛繁殖用）'!$F155=0,\"\",'機械装置入力シート（ICT肉用牛繁殖用）'!$F155),\"\")","v":""}]
[{"$f":"IF(1=1,IF('機械装置入力シート（ICT肉用牛繁殖用）'!H156=0,\"\",'機械装置入力シート（ICT肉用牛繁殖用）'!H156),\"\")","v":""},{"$f":"IF(1=1,IF('機械装置入力シート（ICT肉用牛繁殖用）'!I156=0,\"\",'機械装置入力シート（ICT肉用牛繁殖用）'!I156),\"\")","v":""},{"$f":"IF(1=1,IF('機械装置入力シート（ICT肉用牛繁殖用）'!M156=0,\"\",'機械装置入力シート（ICT肉用牛繁殖用）'!M156),\"\")","v":""},{"$f":"IF(1=1,IF('機械装置入力シート（ICT肉用牛繁殖用）'!N156=0,\"\",'機械装置入力シート（ICT肉用牛繁殖用）'!N156),\"\")","v":""},{"$f":"IF(1=1,IF('機械装置入力シート（ICT肉用牛繁殖用）'!L156=0,\"\",'機械装置入力シート（ICT肉用牛繁殖用）'!L156),\"\")","v":""},{"$f":"IF(1=1,IF('機械装置入力シート（ICT肉用牛繁殖用）'!O156=0,\"\",'機械装置入力シート（ICT肉用牛繁殖用）'!O156),\"\")","v":""},{"$f":"IF(1=1,IF('機械装置入力シート（ICT肉用牛繁殖用）'!P156=0,\"\",'機械装置入力シート（ICT肉用牛繁殖用）'!P156),\"\")","v":""},{"$f":"IF(1=1,IF('機械装置入力シート（ICT肉用牛繁殖用）'!Q156=0,\"\",'機械装置入力シート（ICT肉用牛繁殖用）'!Q156),\"\")","v":""},{"$f":"IF(1=1,IF('機械装置入力シート（ICT肉用牛繁殖用）'!R156=0,\"\",'機械装置入力シート（ICT肉用牛繁殖用）'!R156),\"\")","v":""},{"$f":"IF(1=1,IF('機械装置入力シート（ICT肉用牛繁殖用）'!A156=0,\"\",'機械装置入力シート（ICT肉用牛繁殖用）'!A156),\"\")","v":""},{"$f":"IF(1=1,IF('機械装置入力シート（ICT肉用牛繁殖用）'!B156=0,\"\",'機械装置入力シート（ICT肉用牛繁殖用）'!B156),\"\")","v":""},{"$f":"IF(1=1,IF('機械装置入力シート（ICT肉用牛繁殖用）'!D156=0,\"\",'機械装置入力シート（ICT肉用牛繁殖用）'!D156),\"\")","v":""},{"$f":"IF(1=1,IF('機械装置入力シート（ICT肉用牛繁殖用）'!$E156=0,\"\",'機械装置入力シート（ICT肉用牛繁殖用）'!$E156),\"\")","v":"当該事業"},{"$f":"IF(1=1,IF('機械装置入力シート（ICT肉用牛繁殖用）'!$F156=0,\"\",'機械装置入力シート（ICT肉用牛繁殖用）'!$F156),\"\")","v":""}]
[{"$f":"IF(1=1,IF('機械装置入力シート（ICT肉用牛繁殖用）'!H157=0,\"\",'機械装置入力シート（ICT肉用牛繁殖用）'!H157),\"\")","v":""},{"$f":"IF(1=1,IF('機械装置入力シート（ICT肉用牛繁殖用）'!I157=0,\"\",'機械装置入力シート（ICT肉用牛繁殖用）'!I157),\"\")","v":""},{"$f":"IF(1=1,IF('機械装置入力シート（ICT肉用牛繁殖用）'!M157=0,\"\",'機械装置入力シート（ICT肉用牛繁殖用）'!M157),\"\")","v":""},{"$f":"IF(1=1,IF('機械装置入力シート（ICT肉用牛繁殖用）'!N157=0,\"\",'機械装置入力シート（ICT肉用牛繁殖用）'!N157),\"\")","v":""},{"$f":"IF(1=1,IF('機械装置入力シート（ICT肉用牛繁殖用）'!L157=0,\"\",'機械装置入力シート（ICT肉用牛繁殖用）'!L157),\"\")","v":""},{"$f":"IF(1=1,IF('機械装置入力シート（ICT肉用牛繁殖用）'!O157=0,\"\",'機械装置入力シート（ICT肉用牛繁殖用）'!O157),\"\")","v":""},{"$f":"IF(1=1,IF('機械装置入力シート（ICT肉用牛繁殖用）'!P157=0,\"\",'機械装置入力シート（ICT肉用牛繁殖用）'!P157),\"\")","v":""},{"$f":"IF(1=1,IF('機械装置入力シート（ICT肉用牛繁殖用）'!Q157=0,\"\",'機械装置入力シート（ICT肉用牛繁殖用）'!Q157),\"\")","v":""},{"$f":"IF(1=1,IF('機械装置入力シート（ICT肉用牛繁殖用）'!R157=0,\"\",'機械装置入力シート（ICT肉用牛繁殖用）'!R157),\"\")","v":""},{"$f":"IF(1=1,IF('機械装置入力シート（ICT肉用牛繁殖用）'!A157=0,\"\",'機械装置入力シート（ICT肉用牛繁殖用）'!A157),\"\")","v":""},{"$f":"IF(1=1,IF('機械装置入力シート（ICT肉用牛繁殖用）'!B157=0,\"\",'機械装置入力シート（ICT肉用牛繁殖用）'!B157),\"\")","v":""},{"$f":"IF(1=1,IF('機械装置入力シート（ICT肉用牛繁殖用）'!D157=0,\"\",'機械装置入力シート（ICT肉用牛繁殖用）'!D157),\"\")","v":""},{"$f":"IF(1=1,IF('機械装置入力シート（ICT肉用牛繁殖用）'!$E157=0,\"\",'機械装置入力シート（ICT肉用牛繁殖用）'!$E157),\"\")","v":"当該事業"},{"$f":"IF(1=1,IF('機械装置入力シート（ICT肉用牛繁殖用）'!$F157=0,\"\",'機械装置入力シート（ICT肉用牛繁殖用）'!$F157),\"\")","v":""}]
[{"$f":"IF(1=1,IF('機械装置入力シート（ICT肉用牛繁殖用）'!H158=0,\"\",'機械装置入力シート（ICT肉用牛繁殖用）'!H158),\"\")","v":""},{"$f":"IF(1=1,IF('機械装置入力シート（ICT肉用牛繁殖用）'!I158=0,\"\",'機械装置入力シート（ICT肉用牛繁殖用）'!I158),\"\")","v":""},{"$f":"IF(1=1,IF('機械装置入力シート（ICT肉用牛繁殖用）'!M158=0,\"\",'機械装置入力シート（ICT肉用牛繁殖用）'!M158),\"\")","v":""},{"$f":"IF(1=1,IF('機械装置入力シート（ICT肉用牛繁殖用）'!N158=0,\"\",'機械装置入力シート（ICT肉用牛繁殖用）'!N158),\"\")","v":""},{"$f":"IF(1=1,IF('機械装置入力シート（ICT肉用牛繁殖用）'!L158=0,\"\",'機械装置入力シート（ICT肉用牛繁殖用）'!L158),\"\")","v":""},{"$f":"IF(1=1,IF('機械装置入力シート（ICT肉用牛繁殖用）'!O158=0,\"\",'機械装置入力シート（ICT肉用牛繁殖用）'!O158),\"\")","v":""},{"$f":"IF(1=1,IF('機械装置入力シート（ICT肉用牛繁殖用）'!P158=0,\"\",'機械装置入力シート（ICT肉用牛繁殖用）'!P158),\"\")","v":""},{"$f":"IF(1=1,IF('機械装置入力シート（ICT肉用牛繁殖用）'!Q158=0,\"\",'機械装置入力シート（ICT肉用牛繁殖用）'!Q158),\"\")","v":""},{"$f":"IF(1=1,IF('機械装置入力シート（ICT肉用牛繁殖用）'!R158=0,\"\",'機械装置入力シート（ICT肉用牛繁殖用）'!R158),\"\")","v":""},{"$f":"IF(1=1,IF('機械装置入力シート（ICT肉用牛繁殖用）'!A158=0,\"\",'機械装置入力シート（ICT肉用牛繁殖用）'!A158),\"\")","v":""},{"$f":"IF(1=1,IF('機械装置入力シート（ICT肉用牛繁殖用）'!B158=0,\"\",'機械装置入力シート（ICT肉用牛繁殖用）'!B158),\"\")","v":""},{"$f":"IF(1=1,IF('機械装置入力シート（ICT肉用牛繁殖用）'!D158=0,\"\",'機械装置入力シート（ICT肉用牛繁殖用）'!D158),\"\")","v":""},{"$f":"IF(1=1,IF('機械装置入力シート（ICT肉用牛繁殖用）'!$E158=0,\"\",'機械装置入力シート（ICT肉用牛繁殖用）'!$E158),\"\")","v":"当該事業"},{"$f":"IF(1=1,IF('機械装置入力シート（ICT肉用牛繁殖用）'!$F158=0,\"\",'機械装置入力シート（ICT肉用牛繁殖用）'!$F158),\"\")","v":""}]
[{"$f":"IF(1=1,IF('機械装置入力シート（ICT肉用牛繁殖用）'!H159=0,\"\",'機械装置入力シート（ICT肉用牛繁殖用）'!H159),\"\")","v":""},{"$f":"IF(1=1,IF('機械装置入力シート（ICT肉用牛繁殖用）'!I159=0,\"\",'機械装置入力シート（ICT肉用牛繁殖用）'!I159),\"\")","v":""},{"$f":"IF(1=1,IF('機械装置入力シート（ICT肉用牛繁殖用）'!M159=0,\"\",'機械装置入力シート（ICT肉用牛繁殖用）'!M159),\"\")","v":""},{"$f":"IF(1=1,IF('機械装置入力シート（ICT肉用牛繁殖用）'!N159=0,\"\",'機械装置入力シート（ICT肉用牛繁殖用）'!N159),\"\")","v":""},{"$f":"IF(1=1,IF('機械装置入力シート（ICT肉用牛繁殖用）'!L159=0,\"\",'機械装置入力シート（ICT肉用牛繁殖用）'!L159),\"\")","v":""},{"$f":"IF(1=1,IF('機械装置入力シート（ICT肉用牛繁殖用）'!O159=0,\"\",'機械装置入力シート（ICT肉用牛繁殖用）'!O159),\"\")","v":""},{"$f":"IF(1=1,IF('機械装置入力シート（ICT肉用牛繁殖用）'!P159=0,\"\",'機械装置入力シート（ICT肉用牛繁殖用）'!P159),\"\")","v":""},{"$f":"IF(1=1,IF('機械装置入力シート（ICT肉用牛繁殖用）'!Q159=0,\"\",'機械装置入力シート（ICT肉用牛繁殖用）'!Q159),\"\")","v":""},{"$f":"IF(1=1,IF('機械装置入力シート（ICT肉用牛繁殖用）'!R159=0,\"\",'機械装置入力シート（ICT肉用牛繁殖用）'!R159),\"\")","v":""},{"$f":"IF(1=1,IF('機械装置入力シート（ICT肉用牛繁殖用）'!A159=0,\"\",'機械装置入力シート（ICT肉用牛繁殖用）'!A159),\"\")","v":""},{"$f":"IF(1=1,IF('機械装置入力シート（ICT肉用牛繁殖用）'!B159=0,\"\",'機械装置入力シート（ICT肉用牛繁殖用）'!B159),\"\")","v":""},{"$f":"IF(1=1,IF('機械装置入力シート（ICT肉用牛繁殖用）'!D159=0,\"\",'機械装置入力シート（ICT肉用牛繁殖用）'!D159),\"\")","v":""},{"$f":"IF(1=1,IF('機械装置入力シート（ICT肉用牛繁殖用）'!$E159=0,\"\",'機械装置入力シート（ICT肉用牛繁殖用）'!$E159),\"\")","v":"当該事業"},{"$f":"IF(1=1,IF('機械装置入力シート（ICT肉用牛繁殖用）'!$F159=0,\"\",'機械装置入力シート（ICT肉用牛繁殖用）'!$F159),\"\")","v":""}]

{"sheet":"まとめシート（ICT 別添6）","index":4,"n_rows":47,"n_cols":101,"rows_kept":47,"cut":false,"hidden":false,"merged":[[39,58,39,60],[39,61,39,62],[39,63,39,65],[39,35,39,37],[39,38,39,40],[38,35,38,37],[38,38,38,40],[39,41,39,43],[39,44,39,46],[39,47,39,51],[39,52,39,54],[39,55,39,57],[38,1,38,2],[38,3,38,10],[38,11,38,17],[38,18,38,24],[38,25,38,31],[38,32,38,34],[37,35,37,37],[37,38,37,40],[37,41,37,43],[37,1,37,2],[37,3,37,10],[37,11,37,17],[37,18,37,24],[37,25,37,31],[37,32,37,34],[36,35,36,37],[36,38,36,40],[36,1,36,2],[36,3,36,10],[35,41,35,43],[35,44,35,46],[35,47,35,51],[35,52,35,54],[35,55,35,57],[36,41,36,43],[36,44,36,46],[36,47,36,51],[36,52,36,54],[36,55,36,57],[36,11,36,17],[36,18,36,24],[36,25,36,31],[36,32,36,34],[35,35,35,37],[35,38,35,40],[34,11,34,17],[34,18,34,24],[34,25,34,31],[34,32,34,34],[35,1,35,2],[35,3,35,10],[35,11,35,17],[35,18,35,24],[35,25,35,31],[35,32,35,34],[34,35,34,37],[34,38,34,40],[34,1,34,2],[34,3,34,10],[31,41,31,43],[33,41,33,43],[33,1,33,2],[33,3,33,10],[33,11,33,17],[33,18,33,24],[33,25,33,31],[33,32,33,34],[32,35,32,37],[32,38,32,40],[32,1,32,2],[32,3,32,10],[32,11,32,17],[32,18,32,24],[32,25,32,31],[32,32,32,34],[31,35,31,37],[31,38,31,40],[33,35,33,37],[33,38,33,40],[31,1,31,2],[31,3,31,10],[31,11,31,17],[31,18,31,24],[31,25,31,31],[31,32,31,34],[30,35,30,37],[30,38,30,40],[30,1,30,2],[30,3,30,10],[30,11,30,17],[30,18,30,24],[30,25,30,31],[30,32,30,34],[29,41,29,43],[29,44,29,46],[29,47,29,51],[29,52,29,54],[29,55,29,57],[30,41,30,43],[30,44,30,46],[30,47,30,51],[30,52,30,54],[30,55,30,57],[29,35,29,37],[29,38,29,40],[28,11,28,17],[28,18,28,24],[28,25,28,31],[28,32,28,34],[26,1,26,2],[29,1,29,2],[29,3,29,10],[29,11,29,17],[29,18,29,24],[29,25,29,31],[29,32,29,34],[28,35,28,37],[28,38,28,40],[28,1,28,2],[28,3,28,10],[27,35,27,37],[27,38,27,40],[27,41,27,43],[27,1,27,2],[27,3,27,10],[27,11,27,17],[27,18,27,24],[27,25,27,31],[27,32,27,34],[25,44,25,46],[25,47,25,51],[26,3,26,10],[26,11,26,17],[26,18,26,24],[26,25,26,31],[26,32,26,34],[25,35,25,37],[25,38,25,40],[26,35,26,37],[26,38,26,40],[25,1,25,2],[25,3,25,10],[25,11,25,17],[25,18,25,24],[25,25,25,31],[25,32,25,34],[24,35,24,37],[24,38,24,40],[25,41,25,43],[20,47,20,57],[24,1,24,2],[24,3,24,10],[24,11,24,17],[24,18,24,24],[24,25,24,31],[24,32,24,34],[23,35,23,37],[23,38,23,40],[23,1,23,2],[23,3,23,10],[23,11,23,17],[23,18,23,24],[23,25,23,31],[23,32,23,34],[23,41,23,43],[23,44,23,46],[23,47,23,51],[23,52,23,54],[23,55,23,57],[16,15,16,28],[16,29,16,30],[20,1,22,2],[20,3,22,10],[20,11,22,17],[13,15,13,28],[13,29,13,30],[14,15,14,28],[14,29,14,30],[15,15,15,28],[15,29,15,30],[20,18,20,46],[21,18,22,24],[21,25,22,31],[21,32,22,34],[21,35,22,37],[21,38,22,40],[10,1,10,14],[10,15,10,28],[10,29,10,30],[11,16,11,28],[11,29,11,30],[12,16,12,28],[12,29,12,30],[5,1,5,8],[5,9,5,28],[6,1,6,8],[6,9,6,28],[9,1,9,14],[9,15,9,17],[9,18,9,19],[9,20,9,22],[9,23,9,24],[20,96,22,96],[20,97,22,97],[20,98,22,98],[20,99,22,99],[20,100,22,100],[21,41,22,43],[21,44,22,46],[21,47,22,51],[21,52,22,54],[21,55,22,57],[21,58,22,60],[21,61,22,62],[21,63,22,65],[21,66,22,68],[21,69,22,72],[20,58,20,72],[20,73,22,76],[20,77,22,80],[20,81,22,86],[20,87,22,89],[20,92,22,92],[20,93,22,93],[20,94,22,94],[20,95,22,95],[23,58,23,60],[23,61,23,62],[23,63,23,65],[23,66,23,68],[24,41,24,43],[24,44,24,46],[24,47,24,51],[24,52,24,54],[24,55,24,57],[24,58,24,60],[24,61,24,62],[24,63,24,65],[24,66,24,68],[25,66,25,68],[25,69,25,72],[25,73,25,76],[25,77,25,80],[23,69,23,72],[23,73,23,76],[23,77,23,80],[23,81,23,86],[23,87,23,89],[24,69,24,72],[24,73,24,76],[24,77,24,80],[24,81,24,86],[24,87,24,89],[27,63,27,65],[27,66,27,68],[27,69,27,72],[25,81,25,86],[25,87,25,89],[26,41,26,43],[26,44,26,46],[26,47,26,51],[26,52,26,54],[26,55,26,57],[26,58,26,60],[26,61,26,62],[26,63,26,65],[26,66,26,68],[26,69,26,72],[26,73,26,76],[26,77,26,80],[26,81,26,86],[26,87,26,89],[25,52,25,54],[25,55,25,57],[25,58,25,60],[25,61,25,62],[25,63,25,65],[27,73,27,76],[27,77,27,80],[27,81,27,86],[27,87,27,89],[28,41,28,43],[28,44,28,46],[28,47,28,51],[28,52,28,54],[28,55,28,57],[28,58,28,60],[28,61,28,62],[28,63,28,65],[28,66,28,68],[28,69,28,72],[28,73,28,76],[28,77,28,80],[28,81,28,86],[28,87,28,89],[27,44,27,46],[27,47,27,51],[27,52,27,54],[27,55,27,57],[27,58,27,60],[27,61,27,62],[30,73,30,76],[30,77,30,80],[30,81,30,86],[30,87,30,89],[29,58,29,60],[29,61,29,62],[29,63,29,65],[29,66,29,68],[29,69,29,72],[29,73,29,76],[29,77,29,80],[29,81,29,86],[29,87,29,89],[31,55,31,57],[31,58,31,60],[31,61,31,62],[31,63,31,65],[31,66,31,68],[31,69,31,72],[30,58,30,60],[30,61,30,62],[30,63,30,65],[30,66,30,68],[30,69,30,72],[33,63,33,65],[33,66,33,68],[33,69,33,72],[31,73,31,76],[31,77,31,80],[31,81,31,86],[31,87,31,89],[32,41,32,43],[32,44,32,46],[32,47,32,51],[32,52,32,54],[32,55,32,57],[32,58,32,60],[32,61,32,62],[32,63,32,65],[32,66,32,68],[32,69,32,72],[32,73,32,76],[32,77,32,80],[32,81,32,86],[32,87,32,89],[31,44,31,46],[31,47,31,51],[31,52,31,54],[33,73,33,76],[33,77,33,80],[33,81,33,86],[33,87,33,89],[34,41,34,43],[34,44,34,46],[34,47,34,51],[34,52,34,54],[34,55,34,57],[34,58,34,60],[34,61,34,62],[34,63,34,65],[34,66,34,68],[34,69,34,72],[34,73,34,76],[34,77,34,80],[34,81,34,86],[34,87,34,89],[33,44,33,46],[33,47,33,51],[33,52,33,54],[33,55,33,57],[33,58,33,60],[33,61,33,62],[36,73,36,76],[36,77,36,80],[36,81,36,86],[36,87,36,89],[35,58,35,60],[35,61,35,62],[35,63,35,65],[35,66,35,68],[35,69,35,72],[35,73,35,76],[35,77,35,80],[35,81,35,86],[35,87,35,89],[37,58,37,60],[37,61,37,62],[37,63,37,65],[37,66,37,68],[37,69,37,72],[36,58,36,60],[36,61,36,62],[36,63,36,65],[36,66,36,68],[36,69,36,72],[39,66,39,68],[39,69,39,72],[37,73,37,76],[37,77,37,80],[37,81,37,86],[37,87,37,89],[38,41,38,43],[38,44,38,46],[38,47,38,51],[38,52,38,54],[38,55,38,57],[38,58,38,60],[38,61,38,62],[38,63,38,65],[38,66,38,68],[38,69,38,72],[38,73,38,76],[38,77,38,80],[38,81,38,86],[38,87,38,89],[37,44,37,46],[37,47,37,51],[37,52,37,54],[37,55,37,57]]}
[]
[null,"別添６（第８の２の（１）関係）"]
[]
[null,"令和７年度ICT化等機械装置等導入事業　参加要望書"]
[]
[null,"畜産ICT応援会議の名称"]
[null,"（都道府県名)",null,null,null,null,null,null,null,"（　　　　　　　　　　　　　）"]
[]
[null,"○　畜産ICT応援会議推進事業への参加の有無"]
[null,"畜産ICT応援会議推進事業への参加の有無",null,null,null,null,null,null,null,null,null,null,null,null,null,"有",null,null,null,null,"無"]
[null,"畜産ICT応援会議推進事業の取組内容",null,null,null,null,null,null,null,null,null,null,null,null,null,"会議の開催"]
[null,null,null,null,null,null,null,null,null,null,null,null,null,null,null,null,"事業計画の策定"]
[null,null,null,null,null,null,null,null,null,null,null,null,null,null,null,null,"労働時間削減用機械装置の選定"]
[null,null,null,null,null,null,null,null,null,null,null,null,null,null,null,"事業成果の検討"]
[null,null,null,null,null,null,null,null,null,null,null,null,null,null,null,"先進地事例調査"]
[null,null,null,null,null,null,null,null,null,null,null,null,null,null,null,"労働時間削減に取り組む酪農家への指導"]
[null,null,null,null,null,null,null,null,null,null,null,null,null,null,null,"その他"]
[null,"　※　該当する項目の欄に○をする。（応援会議 記入欄）"]
[]
[null,"○対象者の機械装置の要望取りまとめ"]
[null,"優先順位",null,"畜産ICT応援会議の名称",null,null,null,null,null,null,null,"労働負担軽減\n経営体名",null,null,null,null,null,null,"機械装置",null,null,null,null,null,null,null,null,null,null,null,null,null,null,null,null,null,null,null,null,null,null,null,null,null,null,null,null,"施設の整備",null,null,null,null,null,null,null,null,null,null,"事業費、補助金額等",null,null,null,null,null,null,null,null,null,null,null,null,null,null,"成果目標値\n※４",null,null,null,"労働時間削減効果分析の結果\n※5",null,null,null,"検証方法\n※６",null,null,null,null,null,"備考\n※7",null,null,null,null,"県名","申込日","県名","県内応援会議番号","経産牛\n頭数","導入方式","総労働時間","削減労働時間","作業人員"]
[null,null,null,null,null,null,null,null,null,null,null,null,null,null,null,null,null,null,"機械装置の区分\n※１",null,null,null,null,null,null,"機械装置名\n※2",null,null,null,null,null,null,"カタログページ\n※3",null,null,"数量",null,null,"機械価格\n（税抜）",null,null,"補助\n金額",null,null,"単価\n（付属機器を除く）",null,null,"施設整備\nの内容",null,null,null,null,"事業費\n（税抜）",null,null,"単価\n（/㎡）",null,null,"事業費\nA",null,null,"消費税\nB",null,"計\n(A+B)",null,null,"補助率",null,null,"補助金額\n(A×1/2以内)"]
[]
[]
[]
[]
[]
[]
[]
[]
[]
[]
[]
[]
[]
[]
[]
[]
[]
[null,null,null,null,null,null,null,null,null,null,null,null,null,null,null,null,null,null,null,null,null,null,null,null,null,null,null,null,null,null,null,null,null,null,null,"合計"]
[null,"※１　別紙９の別添１に記載されている機械装置の区分により記載すること。"]
[null,"※２　別紙９の別添１に記載されている仕様等により記載すること。"]
[null,"※３　（公社）中央畜産会が発行している畜産機械施設ガイドブックの該当するページ番号を記載すること。該当しない場合はカタログを添付すること。"]
[null,"※４　当該機械装置を導入することにより削減される労働時間の削減率を記載すること。削減率は、（削減後の総労働時間－削減前の総労働時間）/削減前の総労働時間×100により求める。"]
[null,"※５　別添４に記載の労働時間削減効果分析により求める。"]
[null,"※６　検証方法欄には、成果目標を検証するための具体的な検証方法や資料名等を記載すること。"]
[null,"※７　あらかじめ中古品を希望することが確実な場合は、備考欄に「中古品」を記載するとともに、「残存期間（法定耐用年数－経過年数）」を記載すること。また、自費や本事業以外の事業を用いて機械装置を導入する場合は、その旨を記載すること。"]

{"sheet":"項目リスト","index":5,"n_rows":234,"n_cols":17,"rows_kept":234,"cut":false,"hidden":false,"merged":[]}
["VersionDate 2025/4/11"]
["県CD","県名","記号","導入方式","機械装置の区分","転記用の名称","入力シートでの名称","機械装置名","1頭あたりの時間","区分","値","ステージ3機械装置名","応援会議\n県","応援会議\nコード","応援会議名","応援会議代表名","パーラー方式"]
[1,"北海道",null,null,"搾乳関係機械装置",null,null,null,null,"１　後継者①",0.9,"自動給餌機（濃厚飼料用）","01","001","きたそらち畜産協議会","会長　藤川　豊","へリングボーン"]
[2,"青森県","○","リース方式","搾乳関係機械装置",null,null,"バケット及びパイプライン方式（自動離脱装置なし）",48,"１　後継者②",0.95,"自動給餌機（濃厚・粗飼料用）","01","002","そらち南酪農協議会","会長　権平　敬保","パラレル"]
[3,"岩手県",null,"購入方式","搾乳関係機械装置","ミルカー自動離脱装置","ミルカー自動離脱装置","バケット及びパイプライン方式（自動離脱装置あり）",40,"２　乳用後継牛①",0.9,"餌寄せロボット","01","003","石狩北部地域畜産クラスター推進協議会","会長　山本　裕康","ロータリー"]
[4,"宮城県",null,null,"搾乳関係機械装置","搾乳ユニット搬送レール手動","搾乳ユニット搬送レール手動","搾乳ユニット手動搬送方式（自動離脱装置なし）",46,"２　乳用後継牛②",0.95,"自走式配餌車","01","004","道央地域畜産クラスター推進協議会","会長　岩田　宏彦","アブレスト"]
[5,"秋田県",null,null,"搾乳関係機械装置","搾乳ユニット搬送レール手動","搾乳ユニット搬送レール手動","搾乳ユニット手動搬送方式（自動離脱装置あり）",38,"３　飼養管理",0.9,"ほ乳ロボット","01","005","ようてい広域畜産クラスター協議会","会長　高倉　正志","タンデム"]
[6,"山形県",null,null,"搾乳関係機械装置","搾乳ユニット搬送レール自動","搾乳ユニット搬送レール自動","搾乳ユニット自動搬送方式",34,"３　その他①",0.95,"移動式ほ乳機","01","006","とまこまい広域畜産クラスター協議会","会長　宮田　広幸"]
[7,"福島県",null,null,"搾乳関係機械装置","ミルキングパーラー","ミルキングパーラー","ミルキングパーラー方式（自動離脱装置なし）",42,"３　その他②",0.95,"発情発見装置","01","007","ＪＡ伊達市畜産クラスター協議会","会長　佐藤　哲"]
[8,"茨城県",null,null,"搾乳関係機械装置","ミルキングパーラー","ミルキングパーラー","ミルキングパーラー方式（自動離脱装置あり）",34,"３　その他③",0.9,"分娩監視装置","01","008","びらとり畜産クラスター協議会","会長　加藤　三明"]
[9,"栃木県",null,null,"搾乳関係機械装置","搾乳ロボット","搾乳ロボット","搾乳ロボット方式",7,"３　その他④",0.95,"行動監視装置（繁殖）","01","009","新冠町酪農振興会","会長　佐藤　学"]
[10,"群馬県",null,null,"搾乳関係機械装置",null,null,"人力による乳頭洗浄",8,"３　その他⑤",0.9,"行動監視装置（放牧）","01","010","静内酪農振興会","会長　佐藤　学"]
[11,"埼玉県",null,null,"搾乳関係機械装置","自動乳頭洗浄機","自動乳頭洗浄機","自動乳頭洗浄機",6,"３　その他⑥",0.95,"バーンスクレーパー","01","011","七飯町酪農組合","組合長　山川　明"]
[12,"千葉県",null,null,"飼料給与関係機械装置",null,null,"人力による給餌方式",38,"３　その他⑦",0.95,"敷料散布機","01","012","八雲町畜産クラスター協議会","会長　舟田　進一"]
[13,"東京都",null,null,"飼料給与関係機械装置","餌寄せロボット","餌寄せロボット","自動餌寄せ方式",35,"３　その他⑧",0.95,null,"01","013","森酪農生産部会","部会長　石岡　浩"]
[14,"神奈川県",null,null,"飼料給与関係機械装置","自動給餌機（濃厚飼料）","自動給餌機（濃厚飼料）","自動給餌方式（濃厚飼料）",14,"３　その他⑨",0.9,null,"01","014","若松・瀬棚地区畜産クラスター協議会","会長　石立　浩"]
[15,"新潟県",null,null,"飼料給与関係機械装置",null,null,"自動給餌+自動餌寄せ方式（濃厚飼料）",11,"３　その他⑩",0.8,null,"01","015","北檜山地区畜産クラスター協議会","会長　大津　良夫"]
[16,"富山県",null,null,"飼料給与関係機械装置","自動給餌機（濃厚・粗飼料）","自動給餌機（濃厚・粗飼料）","自動給餌方式（濃厚・粗飼料）",12,"３　その他⑪",0.9,null,"01","016","今金町楽酪応援会議","会長　仁木　明"]
[17,"石川県",null,null,"飼料給与関係機械装置",null,null,"自動給餌+自動餌寄せ方式（濃厚・粗飼料）",9,"３　その他⑫",0.9,null,"01","017","ふらの沿線地域畜産クラスター協議会","会長　川上　勝義"]
[18,"福井県",null,null,"飼料給与関係機械装置","自走式配餌車","自走式配餌車","自走式配餌車",32,null,null,null,"01","018","北ひびき酪農振興協議会","会長　山下　英紀"]
[19,"山梨県",null,null,"飼料給与関係機械装置",null,null,"自走式配餌＋自動餌寄せ方式",29,null,null,null,"01","019","名寄市楽酪応援会議","会長　佐藤　信明"]
[20,"長野県",null,null,"飼料給与関係機械装置",null,null,null,4,null,null,null,"01","020","美瑛町楽酪応援会議","会長　稲川　利昭"]
[21,"岐阜県",null,null,"飼料給与関係機械装置","稲わら細断機","稲わら細断機","稲わら細断機による細断",0,null,null,null,"01","021","北はるか楽酪応援協議会","会長　竹本　学"]
[22,"静岡県",null,null,"飼料給与関係機械装置",null,null,"人力によるほ乳方式",3,null,null,null,"01","022","天塩町営農担い手協議会","会長　佐々木　裕之"]
[23,"愛知県",null,null,"飼料給与関係機械装置","ほ乳ロボット","ほ乳ロボット","ほ乳ロボット方式",0,null,null,null,"01","023","稚内市畜産クラスター協議会","会長　工藤　広"]
[24,"三重県",null,null,"飼料給与関係機械装置","ほ乳ロボット（レール式）","ほ乳ロボット（カーフレール式）","ほ乳ロボット方式（カーフレール式）",0,null,null,null,"01","024","ＪＡひがし宗谷畜産クラスター猿払協議会","会長　仲野　信之"]
[25,"滋賀県",null,null,"飼料給与関係機械装置","移動式ほ乳機","移動式ほ乳機","移動式ほ乳機方式",2,null,null,null,"01","025","枝幸町畜産クラスター協議会","会長　向井地　信之"]
[26,"京都府",null,null,"家畜飼養管理機械装置",null,null,"人力による観察方式",8,null,null,null,"01","026","ＪＡひがし宗谷畜産クラスター浜頓別協議会","会長　田中　功悦"]
[27,"大阪府",null,null,"家畜飼養管理機械装置","発情発見装置","発情発見装置","発情発見装置の活用",5,null,null,null,"01","027","幌延町畜産クラスター協議会","会長　野々村 仁"]
[28,"兵庫県",null,null,"家畜飼養管理機械装置","分娩監視装置","分娩監視装置","分娩監視装置の活用",5,null,null,null,"01","028","豊富町畜産クラスター協議会","会長　河田　誠一"]
[29,"奈良県",null,null,"家畜飼養管理機械装置","行動監視装置（繁殖）","行動監視装置（繁殖）","行動監視装置（繁殖）の活用",5,null,null,null,"01","029","中頓別町畜産クラスター協議会","会長　姉歯　義宣"]
[30,"和歌山県",null,null,"家畜飼養管理機械装置",null,null,"発情発見装置＋分娩監視装置の活用",2,null,null,null,"01","030","網走市畜産クラスター協議会","会長　熊谷　満浩"]
[31,"鳥取県",null,null,"家畜飼養管理機械装置",null,null,"発情発見装置＋行動監視装置（繁殖）の活用",2,null,null,null,"01","031","北見市きたみらい地区畜産クラスター協議会","会長　上野　元一"]
[32,"島根県",null,null,"家畜飼養管理機械装置",null,null,"ホイールローダー等自動除糞機によらない除糞",4,null,null,null,"01","032","北見市ところ地区畜産クラスター協議会","会長　河野　光伸"]
[33,"岡山県",null,null,"家畜飼養管理機械装置","バーンスクレーパー","バーンスクレーパー","バーンスクレーパーによる除糞",0,null,null,null,"01","033","大空町東藻琴地区畜産クラスター協議会","会長　　西　克栄"]
[34,"広島県",null,null,"家畜飼養管理機械装置",null,null,"人力による敷料散布",3,null,null,null,"01","034","斜里町畜産クラスター協議会","会長　山内　浩彰"]
[35,"山口県",null,null,"家畜飼養管理機械装置","敷料散布機","敷料散布機","敷料散布機による敷料散布",0,null,null,null,"01","035","小清水町畜産クラスター協議会","会長　久保　弘志"]
[36,"徳島県",null,null,"家畜飼養管理機械装置",null,null,"人力による観察方式",5,null,null,null,"01","036","訓子府地区畜産クラスター協議会","会長　渡辺　克夫"]
[37,"香川県",null,null,"家畜飼養管理機械装置","行動監視装置","行動監視装置","行動監視装置の活用",3,null,null,null,"01","037","置戸地区畜産クラスター協議会","会長　倉本　秀樹"]
[38,"愛媛県",null,null,"家畜飼養管理機械装置",null,null,"人力による管理方式",9,null,null,null,"01","038","佐呂間町畜産クラスター協議会","会長　武田　温友"]
[39,"高知県",null,null,"家畜飼養管理機械装置","行動監視装置（放牧）","行動監視装置（放牧）","行動監視装置（放牧）の活用",7,null,null,null,"01","039","えんゆう農協酪農専門部会","部会長　緑川　将仁"]
[40,"福岡県",null,null,null,null,null,null,null,null,null,null,"01","040","湧別町農協楽酪応援会議","会長　上田　範幸"]
[41,"佐賀県",null,null,null,null,null,null,null,null,null,null,"01","041","北オホーツク楽酪応援会議","会長　吉田　隆好"]
[42,"長崎県",null,null,null,null,null,null,null,null,null,null,"01","042","オホーツクはまなす楽酪応援会議","会長　永峰　勝利"]
[43,"熊本県",null,null,null,null,null,null,null,null,null,null,"01","043","新得町畜産クラスター協議会","会長　浜田　正利"]
[44,"大分県",null,null,null,null,null,null,null,null,null,null,"01","044","中札内村酪農クラスター協議会","会長　水崎　勝秀"]
[45,"宮崎県",null,null,null,null,null,null,null,null,null,null,"01","045","大樹町生花晩成地区酪農畜産クラスター協議会","会長　酒森　正人"]
[46,"鹿児島県",null,null,null,null,null,null,null,null,null,null,"01","046","陸別町酪農・畜産クラスター協議会","会長　西岡　悦夫"]
[47,"沖縄県",null,null,null,null,null,null,null,null,null,null,"01","047","帯広市川西畜産クラスター協議会","会長　池守　康浩"]
[null,null,null,null,null,null,null,null,null,null,null,null,"01","048","帯広大正畜産クラスター協議会","会長　池守　康浩"]
[null,null,null,null,null,null,null,null,null,null,null,null,"01","049","音更町畜産クラスター協議会","会長　井原　愛啓"]
[null,null,null,null,null,null,null,null,null,null,null,null,"01","050","士幌町酪農・畜産クラスター協議会","会長　高木　康弘"]
[null,null,null,null,null,null,null,null,null,null,null,null,"01","051","上士幌町地域資源利活用推進協議会","会長　小椋　茂敏"]
[null,null,null,null,null,null,null,null,null,null,null,null,"01","052","鹿追町クラスター協議会","会長　喜井　知己"]
[null,null,null,null,null,null,null,null,null,null,null,null,"01","053","清水町地域畜産振興クラスター協議会","会長　阿部　一男"]
[null,null,null,null,null,null,null,null,null,null,null,null,"01","054","更別村酪農・畜産クラスター協議会","会長　西山　猛"]
[null,null,null,null,null,null,null,null,null,null,null,null,"01","055","大樹町大樹地区酪農畜産クラスター協議会","会長　黒川　豊"]
[null,null,null,null,null,null,null,null,null,null,null,null,"01","056","広尾町農業クラスター協議会","会長　松山　孝三"]
[null,null,null,null,null,null,null,null,null,null,null,null,"01","057","幕別町幕別札内地区畜産クラスター協議会","会長　高橋　修二"]
[null,null,null,null,null,null,null,null,null,null,null,null,"01","058","幕別町忠類地区畜産クラスター協議会","会長　半田　健"]
[null,null,null,null,null,null,null,null,null,null,null,null,"01","059","池田町畜産クラスター協議会","会長 池田町長 安井　美裕"]
[null,null,null,null,null,null,null,null,null,null,null,null,"01","060","本別町畜産クラスター協議会","会長　菊池　敦"]
[null,null,null,null,null,null,null,null,null,null,null,null,"01","061","足寄町畜産クラスター協議会","会長　村田　善映"]
[null,null,null,null,null,null,null,null,null,null,null,null,"01","062","浦幌町畜産クラスター協議会","会長　岡崎　史彦"]
[null,null,null,null,null,null,null,null,null,null,null,null,"01","063","豊頃町酪農・畜産クラスター協議会","会長　宮口　孝"]
[null,null,null,null,null,null,null,null,null,null,null,null,"01","064","釧路太田畜産クラスター協議会","会長　福井　好三"]
[null,null,null,null,null,null,null,null,null,null,null,null,"01","065","浜中町地域担い手育成総合支援協議会","代表　齋藤　清隆"]
[null,null,null,null,null,null,null,null,null,null,null,null,"01","066","標茶町畜産強化協議会","会長　佐藤　千洋"]
[null,null,null,null,null,null,null,null,null,null,null,null,"01","067","弟子屈町畜産クラスター協議会","会長　川口　覚"]
[null,null,null,null,null,null,null,null,null,null,null,null,"01","068","鶴居村畜産クラスター協議会","会長　折笠　文則"]
[null,null,null,null,null,null,null,null,null,null,null,null,"01","069","白糠町畜産クラスター協議会","会長　對木　範誉"]
[null,null,null,null,null,null,null,null,null,null,null,null,"01","070","音別町畜産クラスター協議会","会長　志賀　忠浩"]
[null,null,null,null,null,null,null,null,null,null,null,null,"01","071","阿寒畜産クラスター協議会","会長　野村　宏"]
[null,null,null,null,null,null,null,null,null,null,null,null,"01","072","道東あさひ畜産クラスター協議会","会長　田中　博行"]
[null,null,null,null,null,null,null,null,null,null,null,null,"01","073","けねべつ地域畜産クラスター協議会","会長　北村　篤"]
[null,null,null,null,null,null,null,null,null,null,null,null,"01","074","中標津町農協畜産クラスター協議会","会長　飯島　浩"]
[null,null,null,null,null,null,null,null,null,null,null,null,"01","075","ＪＡ標津地区畜産クラスター協議会","会長　吉田　孝一"]
[null,null,null,null,null,null,null,null,null,null,null,null,"01","076","中春別地域畜産クラスター協議会","会長　望月　英彦"]
[null,null,null,null,null,null,null,null,null,null,null,null,"01","077","中春別中山畜産クラスター推進協議会","会長　中山　勝志"]
[null,null,null,null,null,null,null,null,null,null,null,null,"01","078","いわみざわ農協酪農部会","会長　"]
[null,null,null,null,null,null,null,null,null,null,null,null,"01","079","みついし酪農振興会","会長　"]
[null,null,null,null,null,null,null,null,null,null,null,null,"01","080","日高東部地区畜産振興協議会","会長　笹島　政信"]
[null,null,null,null,null,null,null,null,null,null,null,null,"01","081","ＪＡ新はこだて酪農生産部会　北斗支部","会長　"]
[null,null,null,null,null,null,null,null,null,null,null,null,"01","082","長万部町地域畜産クラスター協議会","会長　"]
[null,null,null,null,null,null,null,null,null,null,null,null,"01","083","遠別町畜産クラスター協議会","会長　佐久間　英一"]
[null,null,null,null,null,null,null,null,null,null,null,null,"01","084","清里町酪農組合","組合長　"]
[null,null,null,null,null,null,null,null,null,null,null,null,"01","085","初山別村畜産クラスター協議会","会長　"]
[null,null,null,null,null,null,null,null,null,null,null,null,"01","086","芽室町畜産クラスター協議会","会長　佐々木　快治"]
[null,null,null,null,null,null,null,null,null,null,null,null,"01","087","大空町女満別地区畜産クラスター協議会","会長　"]
[null,null,null,null,null,null,null,null,null,null,null,null,"01","088","月形町和牛振興協議会","会長　若槻　和希"]
[null,null,null,null,null,null,null,null,null,null,null,null,"01","089","新冠町和牛生産改良組合","組合長　川筋　克幸"]
[null,null,null,null,null,null,null,null,null,null,null,null,"01","090","みついし和牛生産改良組合","組合長　三和　忠雄"]
[null,null,null,null,null,null,null,null,null,null,null,null,"01","091","ＪＡたいせつICT・楽酪応援会議","会長　成田　正夫"]
[null,null,null,null,null,null,null,null,null,null,null,null,"01","092","美幌町畜産クラスター協議会","会長　"]
[null,null,null,null,null,null,null,null,null,null,null,null,"01","093","長沼町地域畜産クラスター協議会","会長　"]
[null,null,null,null,null,null,null,null,null,null,null,null,"01","094","ピンネ畜産クラスター協議会","会長　荒山　直人"]
[null,null,null,null,null,null,null,null,null,null,null,null,"01","095","たきかわ畜産クラスター協議会","会長　小川 潤一"]
[null,null,null,null,null,null,null,null,null,null,null,null,"01","096","清里町和牛生産改良組合","組合長  橋本　秀一"]
[null,null,null,null,null,null,null,null,null,null,null,null,"02","001","ＪＡ十和田おいらせ楽酪応援会議","会長　松浦　真"]
[null,null,null,null,null,null,null,null,null,null,null,null,"02","002","ゆうき青森畜産ＩＣＴ応援会議","会長　本間　健一"]
[null,null,null,null,null,null,null,null,null,null,null,null,"03","001","岩手花平楽酪応援会議","会長　土井　修一"]
[null,null,null,null,null,null,null,null,null,null,null,null,"03","002","岩中酪県南地区畜産クラスター協議会","会長　高橋　浩運"]
[null,null,null,null,null,null,null,null,null,null,null,null,"03","003","岩中酪滝沢・玉山地区畜産クラスター協議会","会長　高橋　浩運"]
[null,null,null,null,null,null,null,null,null,null,null,null,"03","004","岩中酪北岩手・八幡平地区畜産クラスター協議会","会長　高橋　浩運"]
[null,null,null,null,null,null,null,null,null,null,null,null,"03","005","岩手ふるさと楽酪応援会議","会長　横尾　まき子"]
[null,null,null,null,null,null,null,null,null,null,null,null,"03","006","奥中山楽酪応援会議","会長　"]
[null,null,null,null,null,null,null,null,null,null,null,null,"03","007","南部地域楽酪応援会議","会長　"]
[null,null,null,null,null,null,null,null,null,null,null,null,"03","008","くじ楽酪応援会議","会長　石羽根　忠志"]
[null,null,null,null,null,null,null,null,null,null,null,null,"03","009","いわて平泉楽酪応援会議","会長　"]
[null,null,null,null,null,null,null,null,null,null,null,null,"03","010","岩泉町畜産クラスター協議会","会長　中居　健一"]
[null,null,null,null,null,null,null,null,null,null,null,null,"04","001","宮城酪農畜産クラスター協議会楽酪応援会議","会長　一篠　光"]
[null,null,null,null,null,null,null,null,null,null,null,null,"04","002","みやぎの酪農協畜産クラスター協議会","会長　伊藤　一成"]
[null,null,null,null,null,null,null,null,null,null,null,null,"04","003","加美よつば楽酪応援会議","会長　高橋　真"]
[null,null,null,null,null,null,null,null,null,null,null,null,"04","004","いしのまき楽酪応援会議","会長　武山　吉一"]
[null,null,null,null,null,null,null,null,null,null,null,null,"05","001","秋田県楽酪応援会議","会長　武藤　隆繁"]
[null,null,null,null,null,null,null,null,null,null,null,null,"05","002","秋田おばこ畜産ICT応援会議","会長　細谷　精悦"]
[null,null,null,null,null,null,null,null,null,null,null,null,"06","001","山酪楽酪応援会議","会長　山口　長一"]
[null,null,null,null,null,null,null,null,null,null,null,null,"06","002","山形農業協同組合楽酪会","会長　渡辺　雄大"]
[null,null,null,null,null,null,null,null,null,null,null,null,"06","003","飯豊町畜産ICT応援会","代表者　竹田　辰秀"]
[null,null,null,null,null,null,null,null,null,null,null,null,"07","001","福島県楽酪応援会議","会長　宗像　実"]
[null,null,null,null,null,null,null,null,null,null,null,null,"07","002","ＪＡグループ福島地域楽酪応援会議","会長　浅川　通"]
[null,null,null,null,null,null,null,null,null,null,null,null,"08","001","茨城県楽酪応援協議会","会長　朝倉　実行"]
[null,null,null,null,null,null,null,null,null,null,null,null,"08","002","茨城県肉用牛生産者協会","会長　橋本　武二"]
[null,null,null,null,null,null,null,null,null,null,null,null,"08","003","高萩地区畜産ICT応援会議","会議長　鈴木　一郎"]
[null,null,null,null,null,null,null,null,null,null,null,null,"09","001","酪農とちぎ楽酪応援会議","会長　臼井　勉"]
[null,null,null,null,null,null,null,null,null,null,null,null,"09","002","栃酪畜産ＩＣＴ／楽酪応援会議","会長　前田　宏"]
[null,null,null,null,null,null,null,null,null,null,null,null,"09","003","箒根地域楽酪応援協議会","会長　伊藤　昭光"]
[null,null,null,null,null,null,null,null,null,null,null,null,"09","004","日清丸紅栃木県畜産ＩＣＴ応援会議","会長　"]
[null,null,null,null,null,null,null,null,null,null,null,null,"09","005","那須地域畜産ＩＣＴ応援会議","会長　人見 成郎"]
[null,null,null,null,null,null,null,null,null,null,null,null,"09","006","両毛地域畜産ＩＣＴ／楽酪応援会議","会長　山﨑　伝造"]
[null,null,null,null,null,null,null,null,null,null,null,null,"10","001","多野藤岡農協酪農部会","部会長　武井　誠治"]
[null,null,null,null,null,null,null,null,null,null,null,null,"10","002","赤南楽酪応援会議","会長　神尾　和一"]
[null,null,null,null,null,null,null,null,null,null,null,null,"10","003","ＪＡあがつま酪農部","部長　星野　真一"]
[null,null,null,null,null,null,null,null,null,null,null,null,"10","004","ＪＡにったみどり酪農部","部長　岡村　章一"]
[null,null,null,null,null,null,null,null,null,null,null,null,"10","005","ＪＡ前橋市宮城支所酪農部","部長　前原　秀樹"]
[null,null,null,null,null,null,null,null,null,null,null,null,"10","006","群中酪酪農研究会","会長　川島　宏仁"]
[null,null,null,null,null,null,null,null,null,null,null,null,"10","007","利根沼田畜産ＩＣＴ／楽酪応援会議","会長　田村　和敏"]
[null,null,null,null,null,null,null,null,null,null,null,null,"10","008","明友楽酪応援会議","会長　"]
[null,null,null,null,null,null,null,null,null,null,null,null,"10","009","昭和村畜産応援会議","会長　"]
[null,null,null,null,null,null,null,null,null,null,null,null,"10","010","市野倉酪農クラスター協議会","会長　"]
[null,null,null,null,null,null,null,null,null,null,null,null,"10","011","前橋地域畜産ＩＣＴ応援会議","会長　"]
[null,null,null,null,null,null,null,null,null,null,null,null,"10","012","らくらく応援会議","会長　豊田　涼子"]
[null,null,null,null,null,null,null,null,null,null,null,null,"10","013","日清丸紅群馬県畜産ＩＣＴ応援会議","会長　江原　正治"]
[null,null,null,null,null,null,null,null,null,null,null,null,"10","014","新里中央畜産クラスター協議会","会長　小林　真人"]
[null,null,null,null,null,null,null,null,null,null,null,null,"10","015","ＪＡたかさき畜産クラスター協議会","会長　長坂　喜義"]
[null,null,null,null,null,null,null,null,null,null,null,null,"10","016","安中地域畜産ICT応援会議","会長　馬場　英輔"]
[null,null,null,null,null,null,null,null,null,null,null,null,"10","017","東毛酪農畜産クラスター協議会","会長　遠坂　和仁"]
[null,null,null,null,null,null,null,null,null,null,null,null,"11","001","埼玉酪農楽酪応援会議","会長　木本　栄一"]
[null,null,null,null,null,null,null,null,null,null,null,null,"11","002","全農埼玉県本部楽酪応援会議","会長　中村　敦也"]
[null,null,null,null,null,null,null,null,null,null,null,null,"12","001","八千代楽酪応援会議","会長　髙橋　秀行"]
[null,null,null,null,null,null,null,null,null,null,null,null,"12","002","ちばミルク楽酪応援会議","会長　増戸　弘義"]
[null,null,null,null,null,null,null,null,null,null,null,null,"12","003","千葉県新生楽酪応援会議","会長　大塚　優"]
[null,null,null,null,null,null,null,null,null,null,null,null,"12","004","西葉楽酪応援会議","会長　安井　信"]
[null,null,null,null,null,null,null,null,null,null,null,null,"12","005","ちば楽酪応援会議","会長　安井　憲一"]
[null,null,null,null,null,null,null,null,null,null,null,null,"12","006","佐倉市畜産クラスター協議会","会長　田辺　一明"]
[null,null,null,null,null,null,null,null,null,null,null,null,"12","007","千葉北部酪農協楽酪応援会議","会長　服部　一幸"]
[null,null,null,null,null,null,null,null,null,null,null,null,"12","008","千葉三和クラスター協議会","会長　栁下　雄一"]
[null,null,null,null,null,null,null,null,null,null,null,null,"12","009","ちば東葛畜産ＩＣＴ／楽酪応援会議","会長　"]
[null,null,null,null,null,null,null,null,null,null,null,null,"12","010","銚子地域畜産ＩＣＴ応援会議","会長　"]
[null,null,null,null,null,null,null,null,null,null,null,null,"12","011","JA市原市酪農クラスター協議会","会長　小山　清"]
[null,null,null,null,null,null,null,null,null,null,null,null,"14","001","神奈川県楽酪応援会議","会長　荒井　新吾"]
[null,null,null,null,null,null,null,null,null,null,null,null,"15","001","新潟県楽酪応援会議","会長　佐藤　恒平"]
[null,null,null,null,null,null,null,null,null,null,null,null,"17","001","石川県畜産クラスター協議会","会長　安田　秀樹"]
[null,null,null,null,null,null,null,null,null,null,null,null,"19","001","清里生乳生産楽酪応援会議","会長　星野 五三夫"]
[null,null,null,null,null,null,null,null,null,null,null,null,"19","002","富士ヶ嶺楽酪応援会議","会長　髙橋　明夫"]
[null,null,null,null,null,null,null,null,null,null,null,null,"19","003","甲州ワインビーフ応援会議","会長　"]
[null,null,null,null,null,null,null,null,null,null,null,null,"20","001","ＪＡ長野県楽酪応援会議","会長　平林　務"]
[null,null,null,null,null,null,null,null,null,null,null,null,"20","002","長野八ヶ岳畜産クラスター協議会","会長　宮澤　尚"]
[null,null,null,null,null,null,null,null,null,null,null,null,"20","003","上伊那畜産クラスター協議会","会長　白鳥　健一"]
[null,null,null,null,null,null,null,null,null,null,null,null,"20","004","佐久地域畜産クラスター協議会","会長　田中　豊峰"]
[null,null,null,null,null,null,null,null,null,null,null,null,"20","005","小川村畜産ＩＣＴ／楽酪応援会議","会長　笠原　弘顕"]
[null,null,null,null,null,null,null,null,null,null,null,null,"20","006","伊那南箕輪畜産クラスター協議会","会長　桃澤　明"]
[null,null,null,null,null,null,null,null,null,null,null,null,"20","007","南信州畜産ＩＣＴ／楽酪応援会議","会長　塩沢　昇"]
[null,null,null,null,null,null,null,null,null,null,null,null,"20","008","JA木曽畜産ICT/楽酪GO応援会議","会長　横井　勝美"]
[null,null,null,null,null,null,null,null,null,null,null,null,"20","009","龍峡酪農クラスター協議会","会長　村松　康広"]
[null,null,null,null,null,null,null,null,null,null,null,null,"20","010","JAながの畜産クラスター協議会","会長　宮澤　清志"]
[null,null,null,null,null,null,null,null,null,null,null,null,"21","001","岐阜県楽酪応援会議","会長　朝日　修"]
[null,null,null,null,null,null,null,null,null,null,null,null,"22","001","とぴあ浜松楽酪応援会議","会長　岩﨑　藤和"]
[null,null,null,null,null,null,null,null,null,null,null,null,"22","002","富士開拓楽酪応援会議","会長　後藤　康弘"]
[null,null,null,null,null,null,null,null,null,null,null,null,"22","003","富士宮農協楽酪応援会議","会長　土井　一彦"]
[null,null,null,null,null,null,null,null,null,null,null,null,"22","004","函南町畜産ＩＣＴ／楽酪応援会議","会長　川口　正文"]
[null,null,null,null,null,null,null,null,null,null,null,null,"23","001","愛知県楽酪応援会議","会長　河辺　敬一"]
[null,null,null,null,null,null,null,null,null,null,null,null,"23","002","ＪＡあいち肉牛応援会議","会長　鈴木　義正"]
[null,null,null,null,null,null,null,null,null,null,null,null,"24","001","三重県楽酪応援会議","会長　近藤 貞和"]
[null,null,null,null,null,null,null,null,null,null,null,null,"24","002","三重県和牛繁殖協議会","会長　髙橋　護"]
[null,null,null,null,null,null,null,null,null,null,null,null,"25","001","滋賀県酪農経営者協議会","会長　赤井　悟"]
[null,null,null,null,null,null,null,null,null,null,null,null,"25","002","滋賀県肉牛経営者協議会","会長　沢　晶弘"]
[null,null,null,null,null,null,null,null,null,null,null,null,"26","001","ＪＡ京都酪農部会楽酪応援会議","会長　人見　英作"]
[null,null,null,null,null,null,null,null,null,null,null,null,"27","001","堺酪農活性化協議会","会長　"]
[null,null,null,null,null,null,null,null,null,null,null,null,"27","002","大阪府酪農振興協議会","代表　小西　亨"]
[null,null,null,null,null,null,null,null,null,null,null,null,"28","001","兵庫県酪農負担軽減協議会","会長　吉川　稔英"]
[null,null,null,null,null,null,null,null,null,null,null,null,"28","002","ＨＱＭ酪農負担軽減協議会","会長　丸尾　建城"]
[null,null,null,null,null,null,null,null,null,null,null,null,"28","003","洲本市畜産クラスター協議会","会長　竹池　二郎"]
[null,null,null,null,null,null,null,null,null,null,null,null,"29","001","奈良県酪農畜産ＩＣＴ／楽酪応援会議","会長　森田　博次"]
[null,null,null,null,null,null,null,null,null,null,null,null,"29","002","奈良県畜産ＩＣＴ応援会議","会長　中尾　　茂"]
[null,null,null,null,null,null,null,null,null,null,null,null,"30","001","和歌山県ＪＡ高品質生乳生産連絡会楽酪応援会議","会長　瀧本　憲生"]
[null,null,null,null,null,null,null,null,null,null,null,null,"30","002","紀南和牛改良組合","組合長　打越　章介"]
[null,null,null,null,null,null,null,null,null,null,null,null,"31","001","鳥取県東部地域畜産クラスター協議会","会長　"]
[null,null,null,null,null,null,null,null,null,null,null,null,"31","002","鳥取県中西部地域畜産クラスター協議会","会長　小前　孝夫"]
[null,null,null,null,null,null,null,null,null,null,null,null,"32","001","三瓶開拓楽酪応援会議","会長　西谷　悟郎"]
[null,null,null,null,null,null,null,null,null,null,null,null,"33","001","岡山県楽酪応援会議","会長　本城　宏史"]
[null,null,null,null,null,null,null,null,null,null,null,null,"33","002","蒜山ジャージー農協楽酪応援会議","会長　"]
[null,null,null,null,null,null,null,null,null,null,null,null,"34","001","ひろしま楽酪応援会議","会長　温泉川　寛明"]
[null,null,null,null,null,null,null,null,null,null,null,null,"34","002","チチヤス酪農会議","会長　茅野　司"]
[null,null,null,null,null,null,null,null,null,null,null,null,"35","001","山口県酪農振興クラスター協議会","会長　"]
[null,null,null,null,null,null,null,null,null,null,null,null,"36","001","徳島県楽酪応援会議","会長　井上　泰一"]
[null,null,null,null,null,null,null,null,null,null,null,null,"37","001","香川県酪農部会","部会長　森末　雅美"]
[null,null,null,null,null,null,null,null,null,null,null,null,"37","002","西讃酪農畜産ICT／楽酪応援会議","代表　前川　正樹"]
[null,null,null,null,null,null,null,null,null,null,null,null,"37","003","東讃畜産振興センター肉牛部会畜産ＩＣＴ応援会議","代表　"]
[null,null,null,null,null,null,null,null,null,null,null,null,"38","001","愛媛楽酪応援会議","会長　河野　仁"]
[null,null,null,null,null,null,null,null,null,null,null,null,"38","002","東宇和楽酪応援会議","会長　"]
[null,null,null,null,null,null,null,null,null,null,null,null,"39","001","高知県酪農クラスター協議会","会長　国則　達生"]
[null,null,null,null,null,null,null,null,null,null,null,null,"40","001","ふくおか県楽酪応援会議","会長　草場　哲治"]
[null,null,null,null,null,null,null,null,null,null,null,null,"41","001","からつ酪農クラスター協議会","会長　松本　浩文"]
[null,null,null,null,null,null,null,null,null,null,null,null,"41","002","さが酪農クラスター協議会","会長　古川　幸典"]
[null,null,null,null,null,null,null,null,null,null,null,null,"41","003","佐賀県開拓畜産応援会議","会長　井上　富男"]
[null,null,null,null,null,null,null,null,null,null,null,null,"41","004","唐津・玄海畜産協議会","畜産部長　片山　博信"]
[null,null,null,null,null,null,null,null,null,null,null,null,"42","001","日清丸紅長崎県畜産ＩＣＴ応援会議","会長　伊藤　修二"]
[null,null,null,null,null,null,null,null,null,null,null,null,"42","002","長崎酪農がんばらんば協議会","会長　中村 隆馬"]
[null,null,null,null,null,null,null,null,null,null,null,null,"43","001","熊本県楽酪推進協議会","会長　大川　清治"]
[null,null,null,null,null,null,null,null,null,null,null,null,"43","002","小国郷畜産クラスター協議会","会長　髙村　祝次"]
[null,null,null,null,null,null,null,null,null,null,null,null,"43","003","熊本県畜産振興クラスター協議会","会長　富永　和隆"]
[null,null,null,null,null,null,null,null,null,null,null,null,"43","004","熊本県肉用牛生産振興推進協議会","会長　野村　克也"]
[null,null,null,null,null,null,null,null,null,null,null,null,"44","001","大分県酪楽酪応援会議","会長　清末　健一"]
[null,null,null,null,null,null,null,null,null,null,null,null,"44","002","竹田市畜産ICT協議会","会長　渡辺　英治"]
[null,null,null,null,null,null,null,null,null,null,null,null,"44","003","大分県農協肥育委託事業プロジェクト協議会","会長　"]
[null,null,null,null,null,null,null,null,null,null,null,null,"44","004","宇佐市肉用牛クラスター協議会","会長　久保　嘉久"]
[null,null,null,null,null,null,null,null,null,null,null,null,"45","001","宮崎県酪農クラスター協議会","会長　石川　幸保"]
[null,null,null,null,null,null,null,null,null,null,null,null,"45","002","都城・北諸県地区肉用牛クラスター協議会","会長　久保　博文"]
[null,null,null,null,null,null,null,null,null,null,null,null,"45","003","えびの市肉用牛クラスター協議会","会長　"]
[null,null,null,null,null,null,null,null,null,null,null,null,"46","001","鹿児島県酪農楽酪応援会議","会長　轟木　孝一"]
[null,null,null,null,null,null,null,null,null,null,null,null,"46","002","鹿屋市畜産クラスター協議会","会長　"]
[null,null,null,null,null,null,null,null,null,null,null,null,"46","003","出水市畜産クラスター協議会","会長　"]
[null,null,null,null,null,null,null,null,null,null,null,null,"47","001","沖縄県楽酪応援会議／畜産ＩＣＴ応援会議","会長　神谷　翔平"]

{"sheet":"機械装置リスト","index":6,"n_rows":59,"n_cols":80,"rows_kept":59,"cut":false,"hidden":false,"merged":[]}
[]
["機械装置の区分","メーカー名（搾乳ロボット）","型式名（搾乳ロボット）","カタログページ","機械装置の区分","メーカー名（ミルキングパーラー）","型式名（ミルキングパーラー）","カタログページ","機械装置の区分","メーカー名（搾乳ユニット搬送レール自動方式）","型式名（搾乳ユニット搬送レール自動方式）","カタログページ","機械装置の区分","メーカー名（搾乳ユニット搬送レール手動方式）","型式名（搾乳ユニット搬送レール手動方式）","カタログページ","機械装置の区分","メーカー名（自動離脱装置）","型式名（自動離脱装置）","カタログページ","機械装置の区分","メーカー名（乳頭洗浄装置）","型式名（乳頭洗浄装置）","カタログページ","機械装置の区分","メーカー名（自動給餌機：濃厚・粗飼料）","型式名（自動給餌機：濃厚・粗飼料）","カタログページ","機械装置の区分","メーカー名（自動給餌機：濃厚飼料）","型式名自動給餌機（自動給餌機：濃厚飼料）","カタログページ","機械装置の区分","メーカー名（ほ乳ロボット）","型式名（ほ乳ロボット）","カタログページ","機械装置の区分","メーカー名（餌寄せロボット）","型式名（餌寄せロボット）","カタログページ","機械装置の区分","メーカー名（自走式配餌車）","型式名（自走式配餌車）","カタログページ","機械装置の区分","メーカー名（稲わら細断機）","型式名（稲わら細断機）","カタログページ","機械装置の区分","メーカー名（敷料散布機）","型式名（敷料散布機）","カタログページ","機械装置の区分","メーカー名（発情発見機）","型式名（発情発見機）","カタログページ","機械装置の区分","メーカー名（分娩監視装置）","型式名（分娩監視装置）","カタログページ","機械装置の区分","メーカー名（行動監視装置）","型式名（行動監視装置）","カタログページ","機械装置の区分","メーカー名（行動監視装置:放牧）","型式名（行動監視装置:放牧）","カタログページ","機械装置の区分","メーカー名（バーンスクレーパー）","型式名（バーンスクレーパー）","カタログページ","機械装置の区分","メーカー名（移動式ほ乳機）","型式名（移動式ほ乳機）","カタログページ","機械装置の区分","メーカー名（ミルキングパーラー用自動離脱装置）","型式名（ミルキングパーラー用自動離脱装置）","カタログページ"]
["搾乳関係機械装置","LELY","A5",113,"搾乳関係機械装置","GEA","オートローターパフォーマ",103,"搾乳関係機械装置","オリオン機械","UCA30A",102,"搾乳関係機械装置","オリオン機械","UCR75",102,"搾乳関係機械装置","オリオン機械","MMD500",101,"搾乳関係機械装置","オリオン機械","TCU-S",null,"飼料給与関係機械装置","GEA","M2000",null,"飼料給与関係機械装置","中嶋製作所","F-50型",null,"飼料給与関係機械装置","フォースターテクニック","TAP5-VS2-30",73,"飼料給与関係機械装置","GEA","FRone",null,"飼料給与関係機械装置","JAY・LOR",5100,48,"飼料給与関係機械装置","チュウチク","ホシカッター",51,"家畜飼養管理機械装置","オリオン機械","BSMA08",92,"家畜飼養管理機械装置","GEA","首用（Integrate）",null,"家畜飼養管理機械装置","リモート","MD1109MBW（親機）",313,"家畜飼養管理機械装置","デザミス","DU-TG01（センサー）・DU-RE01（中継機）",316,"家畜飼養管理機械装置","デザミス","DU-TG01（センサー）・DU-RE01（中継機）",316,"家畜飼養管理機械装置","GEA","スワロー型（ケーブル）",null,"飼料給与関係機械装置","フォースターテクニック","MDK4-200-37-03",77,"搾乳関係機械装置","GEA","デマトロン75"]
["搾乳関係機械装置","GEA","R9900",111,"搾乳関係機械装置","GEA","T8900",null,null,null,null,null,"搾乳関係機械装置","オリオン機械","UCA30A手動",null,"搾乳関係機械装置","オリオン機械","OCR5000A",null,"搾乳関係機械装置","フューチャーカウ","FC-MP12V1",null,"飼料給与関係機械装置","GEA","M3000",null,"飼料給与関係機械装置","中嶋製作所","F-75型",null,"飼料給与関係機械装置","フォースターテクニック","TAK5-VS2-30",73,"飼料給与関係機械装置","JOZ","Moov2.0",70,"飼料給与関係機械装置","JAY・LOR",5050,null,"飼料給与関係機械装置","ジェメリ","TR18-12",null,"家畜飼養管理機械装置","VALMETAL","e50",93,"家畜飼養管理機械装置","コムテック","TFR400E",307,"家畜飼養管理機械装置","デザミス","DU-CB01",316,"家畜飼養管理機械装置","デザミス","DU-TG02（センサー）・DU-RE02（中継機）",null,"家畜飼養管理機械装置","デザミス","DU-TG02（センサー）・DU-RE02（中継機）",null,"家畜飼養管理機械装置","GEA","V型（ケーブル）",null,"飼料給与関係機械装置","フォースターテクニック","MDK4-200-37-04",77,"搾乳関係機械装置","デラバル","MP580"]
["搾乳関係機械装置","GEA","R9500",112,"搾乳関係機械装置","TDM","R４",107,null,null,null,null,"搾乳関係機械装置","SAC","IDC-T レール UNILINE",null,"搾乳関係機械装置","デラバル","MUブルー",null,"搾乳関係機械装置","オリオン機械","TCU-P",100,"飼料給与関係機械装置","オリオン機械","FMFS30",64,"飼料給与関係機械装置","中嶋製作所","F-90型",null,"飼料給与関係機械装置","フォースターテクニック","子牛用フィードステーション",null,"飼料給与関係機械装置","LELY","JUNO",71,"飼料給与関係機械装置","WIC","32-2SB",null,"飼料給与関係機械装置","ロビベック","PF600",51,"家畜飼養管理機械装置","Wasserbauer","フライピット",null,"家畜飼養管理機械装置","コムテック","TFR400EA",307,"家畜飼養管理機械装置","uLikeKorea","LiveCare",311,"家畜飼養管理機械装置","Nedap","Nedapネックタグ","P320","家畜飼養管理機械装置","Nedap","Nedapネックタグ","P320","家畜飼養管理機械装置","GEA","スワロー型（チェーン）",null,"飼料給与関係機械装置","フォースターテクニック","MDK4-120-37-03",77,"搾乳関係機械装置","デラバル","MP680"]
["搾乳関係機械装置","デラバル","VMS V300",115,"搾乳関係機械装置","ミルクライン","ミルプロP4C",106,null,null,null,null,"搾乳関係機械装置","デラバル","D-CR",null,"搾乳関係機械装置","SAC","IDC-Tライト",null,"搾乳関係機械装置","フューチャーカウ","FC-DD10FT",null,"飼料給与関係機械装置","オリオン機械","FMA16A",65,"飼料給与関係機械装置","中嶋製作所","F-90SS型",null,"飼料給与関係機械装置","フォースターテクニック","体重計",null,"飼料給与関係機械装置","ボーマチック","FP-1",71,"飼料給与関係機械装置","WIC","52-2SB",null,"飼料給与関係機械装置","ロビベック","ROVIPAILLE",null,null,null,null,null,"家畜飼養管理機械装置","コムテック","TFR400E",307,"家畜飼養管理機械装置","太平洋工業","親機CS-PG01",310,"家畜飼養管理機械装置","uLikeKorea","LiveCare",311,"家畜飼養管理機械装置","uLikeKorea","LiveCare",311,"家畜飼養管理機械装置","GEA","V型（チェーン）",null,"飼料給与関係機械装置","フォースターテクニック","MDK4-120-37-04",77,"搾乳関係機械装置","デラバル","MP780"]
["搾乳関係機械装置","デラバル","VMS V300-OCC",115,"搾乳関係機械装置","デラバル","PR3100HD",null,null,null,null,null,"搾乳関係機械装置","本多製作所","ユニットポーター",null,"搾乳関係機械装置","ストランゴ","ソフィマットMD",101,"搾乳関係機械装置","フューチャーカウ","FC-DD20FT",null,"飼料給与関係機械装置","オリオン機械","FMA20A",65,"飼料給与関係機械装置","中嶋製作所","RC-38型",53,"飼料給与関係機械装置","フォースターテクニック","CRS2-IF1-WH",73,"飼料給与関係機械装置","ボーマチック","FP-2",71,"飼料給与関係機械装置","WIC","70-2SB",null,null,null,null,"",null,null,null,null,"家畜飼養管理機械装置","コムテック","TFR400EF",307,"家畜飼養管理機械装置","ファーマーズサポート","MV-A0001",308,"家畜飼養管理機械装置","太平洋工業","親機CS-PG01",310,"家畜飼養管理機械装置","太平洋工業","親機CS-PG01",310,"家畜飼養管理機械装置","JOZ","チェーン式スクレーパー",252,"飼料給与関係機械装置","フォースターテクニック","MRP1-300-56-200V 50Hz",null,"搾乳関係機械装置","デラバル","MP400"]
["搾乳関係機械装置","デラバル","AMR",null,"搾乳関係機械装置","デラバル","E500",108,null,null,null,null,"搾乳関係機械装置","ストランゴ","ハンディユニットキャリア",null,"搾乳関係機械装置","AIC",72560,null,"搾乳関係機械装置","フューチャーカウ","FC-DD35FT",null,"飼料給与関係機械装置","オリオン機械","FMA04A",65,"飼料給与関係機械装置","中嶋製作所","RC-50型",53,"飼料給与関係機械装置","フォースターテクニック","VARIO+",null,"飼料給与関係機械装置","ロビベック","RANGER ",null,"飼料給与関係機械装置","WIC","90-2SB",null,null,null,null,"",null,null,null,null,"家畜飼養管理機械装置","コムテック","TFR400EDⅢ",307,"家畜飼養管理機械装置","ネットカメラ","ベーシックNET-WC01-00CT",null,"家畜飼養管理機械装置","カスケディア・トレーディング","＠mowment(アットモーメント）",315,"家畜飼養管理機械装置","カスケディア・トレーディング","＠mowment(アットモーメント）",315,"家畜飼養管理機械装置","GEAフール","スワロー型（ケーブル）",252,"飼料給与関係機械装置","フォースターテクニック","MRP1-300-56-200V 60Hz",null,"搾乳関係機械装置","デラバル","MP130"]
["搾乳関係機械装置","SAC","RDS Future Line ELITEミラー",null,"搾乳関係機械装置","デラバル","E300",108,null,null,null,null,null,null,null,"","搾乳関係機械装置","AIC",70060,null,"搾乳関係機械装置","プリシステム","F71",99,"飼料給与関係機械装置","オリオン機械","FMA08A",65,"飼料給与関係機械装置","中嶋製作所","C-38型",53,"飼料給与関係機械装置","LELY（フォースターテクニック）","TAP5-VS2-30",75,"飼料給与関係機械装置","Wasserbauer","バトラーゴールドPro",70,"飼料給与関係機械装置","VALMETAL","530CC",72,null,null,null,"",null,null,null,null,"家畜飼養管理機械装置","コムテック","TFR400EDⅢ（Jump）",307,"家畜飼養管理機械装置","ネットカメラ","ベーシックNET-WC01-00CW",null,"家畜飼養管理機械装置","ボーマチック","リアルタイム＋",null,"家畜飼養管理機械装置","ボーマチック","リアルタイム＋",null,"家畜飼養管理機械装置","GEAフール","V型（ケーブル）",252,"飼料給与関係機械装置","フォースターテクニック","MRP1-200-56-200V 50Hz",null,"搾乳関係機械装置","デラバル","MP150"]
["搾乳関係機械装置","SAC","RDS Future Line ELITEシングル",null,"搾乳関係機械装置","ボーマチック","Xcalibur 360EX",104,null,null,null,null,null,null,null,null,"搾乳関係機械装置","AIC",70061,null,"搾乳関係機械装置","プリシステム","F488",null,"飼料給与関係機械装置","One 2 Feed","One2Feed Mix",null,"飼料給与関係機械装置","中嶋製作所","C-50型",53,"飼料給与関係機械装置","LELY（フォースターテクニック）","TAK5-VS2-30",75,"飼料給与関係機械装置","デラバル","オプティデュオ",69,"飼料給与関係機械装置","VALMETAL","542CC",72,null,null,null,null,null,null,null,null,"家畜飼養管理機械装置","MSDアニマルヘルス","SenseHub Dairy（乳牛用）",318,"家畜飼養管理機械装置","ネットカメラ","スタンダードNET-WC01-01CT",null,"家畜飼養管理機械装置","ファームノート","ファームノートカラー",null,"家畜飼養管理機械装置","ファームノート","ファームノートカラー",null,"家畜飼養管理機械装置","GEAフール","GT5",null,"飼料給与関係機械装置","フォースターテクニック","MRP1-200-56-200V 60Hz",null,"搾乳関係機械装置","MILKLINE","ED200"]
["搾乳関係機械装置","FULLWOOD JOZ","M²ERLIN",null,"搾乳関係機械装置","ボーマチック","Streamline 360EX",null,null,null,null,null,null,null,null,null,"搾乳関係機械装置","SAC","UNICO1",null,"搾乳関係機械装置","ウェスター","アダーガン",null,"飼料給与関係機械装置","LELY","LELY Vector",62,"飼料給与関係機械装置","大宮製作所","51型",56,"飼料給与関係機械装置","フォースターテクニック","CRS2-IF1-WH",75,null,null,null,null,"飼料給与関係機械装置","VALMETAL","960CC",72,null,null,null,null,null,null,null,null,"家畜飼養管理機械装置","MSDアニマルヘルス","Sensehub CowCalf（繁殖肉牛用）",318,"家畜飼養管理機械装置","ネットカメラ","スタンダードNET-WC01-01CW",null,null,null,null,null,null,null,null,null,"家畜飼養管理機械装置","GEAフール","スワロー型（チェーン）",252,"飼料給与関係機械装置","デラバル","CMM200+",null,"搾乳関係機械装置","MILKLINE","P4C"]
["搾乳関係機械装置","ミルコマックス","ロボマックス",141,"搾乳関係機械装置","SAC","SAC ロータリーパーラー",null,null,null,null,null,null,null,null,null,"搾乳関係機械装置","SAC","IDC Tリート",null,null,null,null,null,"飼料給与関係機械装置","デラバル","オプティマット",67,"飼料給与関係機械装置","大宮製作所","63型",56,"飼料給与関係機械装置","デラバル","CF1000S",76,null,null,null,null,"飼料給与関係機械装置","VALMETAL","975CC",72,null,null,null,null,null,null,null,null,"家畜飼養管理機械装置","MSDアニマルヘルス","DataFlowⅡ",106,"家畜飼養管理機械装置","ネットカメラ","ドームスタンダードNET-WC04-01CT-A",null,null,null,null,null,null,null,null,null,"家畜飼養管理機械装置","GEAフール","V型（チェーン）",252,"飼料給与関係機械装置","デラバル","CMM120+",null,"搾乳関係機械装置","afimilk","MPC"]
[null,null,null,null,"搾乳関係機械装置","ベコデーリィオートメーション","ベコ・ロータリーパーラー",null,null,null,null,null,null,null,null,null,"搾乳関係機械装置","オリオン機械","OCR2000B",null,null,null,null,null,"飼料給与関係機械装置","デラバル","オプティマットプラス",67,"飼料給与関係機械装置","大宮製作所","39型",57,"飼料給与関係機械装置","デラバル","CFR100",76,null,null,null,null,"飼料給与関係機械装置","ロビベック",4530,null,null,null,null,null,null,null,null,null,"家畜飼養管理機械装置","MSDアニマルヘルス","Mn Neck Tag Flex",null,"家畜飼養管理機械装置","ネットカメラ","ドームスタンダードNET-WC04-01CW-A",null,null,null,null,null,null,null,null,null,"家畜飼養管理機械装置","GEAフール","油圧式",null,"飼料給与関係機械装置","Holm & Laue","MTX100",78,"搾乳関係機械装置","TDM","take off-101"]
[null,null,null,null,"搾乳関係機械装置","フルウッド","ロータリーアブレスト",null,null,null,null,null,null,null,null,null,"搾乳関係機械装置","InｔerPuls","ACRC/DVC1000",null,null,null,null,null,"飼料給与関係機械装置","デラバル","オプティマットマスター",67,"飼料給与関係機械装置","大宮製作所","51型",57,"飼料給与関係機械装置","フォースターテクニック","TAP5-VS1-30",null,null,null,null,null,"飼料給与関係機械装置","ロビベック",5636,null,null,null,null,null,null,null,null,null,"家畜飼養管理機械装置","Allflex","HeatimePro+",null,"家畜飼養管理機械装置","ネットカメラ","ドームNET-WC02-01CT",null,null,null,null,null,null,null,null,null,"家畜飼養管理機械装置","福地工業","FS-2M14",null,"飼料給与関係機械装置","Holm & Laue","MTX100P",78]
[null,null,null,null,"搾乳関係機械装置","ストランゴ","パラレルタイプ",109,null,null,null,null,null,null,null,null,null,null,null,null,null,null,null,null,"飼料給与関係機械装置","デラバル","シャトルECO",null,"飼料給与関係機械装置","大宮製作所","39型",57,"飼料給与関係機械装置","フォースターテクニック","TAK5-VS2-60",null,null,null,null,null,"飼料給与関係機械装置","ロビベック",5642,null,null,null,null,null,null,null,null,null,"家畜飼養管理機械装置","デザミス","DU-TG01（センサー）・DU-RE01（中継機）",316,"家畜飼養管理機械装置","ネットカメラ","ドームNET-WC02-01CW",null,null,null,null,null,null,null,null,null,"家畜飼養管理機械装置","JOZ","ホンダコンビスクレッパー",null,"飼料給与関係機械装置","Holm & Laue","MTX150",78]
[null,null,null,null,"搾乳関係機械装置","ストランゴ","ヘリンボーンタイプ",null,null,null,null,null,null,null,null,null,null,null,null,null,null,null,null,null,"飼料給与関係機械装置","チュウチク","BB800",50,"飼料給与関係機械装置","大宮製作所","51型",57,"飼料給与関係機械装置","ストランゴ（フォースターテクニック）","TAP5-VS2",null,null,null,null,null,"飼料給与関係機械装置","ロビベック",7036,null,null,null,null,null,null,null,null,null,"家畜飼養管理機械装置","デザミス","DU-TG02（センサー）・DU-RE02（中継機）",null,"家畜飼養管理機械装置","ネットカメラ","ドームプロNET-WC03-01CT",null,null,null,null,null,null,null,null,null,"家畜飼養管理機械装置","パッツ","インテリチェーン",null,"飼料給与関係機械装置","Holm & Laue","MTX150P",78]
[null,null,null,null,"搾乳関係機械装置","GEA","マグナム90iVL",103,null,null,null,null,null,null,null,null,null,null,null,null,null,null,null,null,"飼料給与関係機械装置","チュウチク","BB1000",50,"飼料給与関係機械装置","TEWE","T60型",57,"飼料給与関係機械装置","フォースターテクニック","CF-130",null,null,null,null,null,"飼料給与関係機械装置","ロビベック",7042,null,null,null,null,null,null,null,null,null,"家畜飼養管理機械装置","uLikeKorea","LiveCare",311,"家畜飼養管理機械装置","ネットカメラ","ドームプロNET-WC03-01CW",null,null,null,null,null,null,null,null,null,"家畜飼養管理機械装置","パッツ","インテリケーブル",null,"飼料給与関係機械装置","Holm & Laue","MTX260",78]
[null,null,null,null,"搾乳関係機械装置","GEA","マグナム90i",null,null,null,null,null,null,null,null,null,null,null,null,null,null,null,null,null,"飼料給与関係機械装置","チュウチク","DM-400SL",49,"飼料給与関係機械装置","大宮製作所","600型",56,"飼料給与関係機械装置","フォースターテクニック","CF-230",null,null,null,null,null,"飼料給与関係機械装置","ロビベック",9542,null,null,null,null,null,null,null,null,null,"家畜飼養管理機械装置","太平洋工業","親機CS-PG01",310,"家畜飼養管理機械装置","ネットカメラ","データ通信タイプNET-C1000-00CT",null,null,null,null,null,null,null,null,null,"家畜飼養管理機械装置","ストランゴ","バーンスクレイパー",253,"飼料給与関係機械装置","Holm & Laue","MTX260P",78]
[null,null,null,null,"搾乳関係機械装置","GEA","グローバル90VL",103,null,null,null,null,null,null,null,null,null,null,null,null,null,null,null,null,"飼料給与関係機械装置","チュウチク","DM-600SL",49,"飼料給与関係機械装置","大宮製作所","1000型",56,"飼料給与関係機械装置","フォースターテクニック","CF-260",null,null,null,null,null,"飼料給与関係機械装置","ロビベック",12048,null,null,null,null,null,null,null,null,null,"家畜飼養管理機械装置","afimilk","アフィタグⅡ（脚用）",306,"家畜飼養管理機械装置","ネットカメラ","Wi-Fiタイプ　NET-C1000-00CW",null,null,null,null,null,null,null,null,null,"家畜飼養管理機械装置","デラバル","HCR60",254,"飼料給与関係機械装置","ウーバン","MS-100"]
[null,null,null,null,"搾乳関係機械装置","GEA","グローバル90i",103,null,null,null,null,null,null,null,null,null,null,null,null,null,null,null,null,"飼料給与関係機械装置","チュウチク","DM-800SL",49,"飼料給与関係機械装置","大宮製作所","1400型",56,"飼料給与関係機械装置","BRITMILK","ID-TEK",null,null,null,null,null,"飼料給与関係機械装置","VALMETAL","E30",72,null,null,null,null,null,null,null,null,"家畜飼養管理機械装置","afimilk","アフィカラー（首用）",306,"家畜飼養管理機械装置","キャノン","VB-M741LE",null,null,null,null,null,null,null,null,null,"家畜飼養管理機械装置","デラバル","AKD140",254,"飼料給与関係機械装置","ウーバン","MS-150"]
[null,null,null,null,"搾乳関係機械装置","GEA","チャレンジャー90",103,null,null,null,null,null,null,null,null,null,null,null,null,null,null,null,null,"飼料給与関係機械装置","チュウチク","DM-1000SL",49,"飼料給与関係機械装置","大宮製作所","S100型",56,"飼料給与関係機械装置","バイオティック","BOVI-28",null,null,null,null,null,"飼料給与関係機械装置","VALMETAL","E42",72,null,null,null,null,null,null,null,null,"家畜飼養管理機械装置","afmilk","アフィアクトⅡ",null,"家畜飼養管理機械装置","キャノン","AXIS M2026-LE",null,null,null,null,null,null,null,null,null,"家畜飼養管理機械装置","デラバル","AKD250",254,"飼料給与関係機械装置","ウーバン","MS-200"]
[null,null,null,null,"搾乳関係機械装置","ミルクライン","ミルプロP4C",null,null,null,null,null,null,null,null,null,null,null,null,null,null,null,null,null,"飼料給与関係機械装置","チュウチク","DM-1200SL",49,"飼料給与関係機械装置","長野クリエート","CK-38",54,"飼料給与関係機械装置","Holm & Laue","カーフエクスパート",77,null,null,null,null,"飼料給与関係機械装置","VALMETAL","E60",72,null,null,null,null,null,null,null,null,"家畜飼養管理機械装置","LELY","QwesLDnコントローラー",113,"家畜飼養管理機械装置","デラバル","FMC-IP1",null,null,null,null,null,null,null,null,null,"家畜飼養管理機械装置","JOZ","BARN-E 185 RVS",null,null,null,null,""]
[null,null,null,null,"搾乳関係機械装置","TDM","LUCY",107,null,null,null,null,null,null,null,null,null,null,null,null,null,null,null,null,"飼料給与関係機械装置","チュウチク","DM-1500SL",49,"飼料給与関係機械装置","長野クリエート","CK-50",54,null,null,null,null,null,null,null,null,"飼料給与関係機械装置","チュウチク","CF-30D",49,null,null,null,null,null,null,null,null,"家畜飼養管理機械装置","LELY","QwesLDnタグ",113,"家畜飼養管理機械装置","ノーリツプレシジョン","NU-A11",309,null,null,null,null,null,null,null,null,null,null,null,null,null,null,null,""]
[null,null,null,null,"搾乳関係機械装置","デラバル","P500",109,null,null,null,null,null,null,null,null,null,null,null,null,null,null,null,null,"飼料給与関係機械装置","チュウチク","DM-1700SL",49,"飼料給与関係機械装置","長野クリエート","WK-38",54,null,null,null,null,null,null,null,null,"飼料給与関係機械装置","チュウチク","CF-40D",null,null,null,null,null,null,null,null,null,"家畜飼養管理機械装置","デラバル","AR2",null,"家畜飼養管理機械装置","ガーミチューナー","TYPE3"]
[null,null,null,null,"搾乳関係機械装置","デラバル","P2100",109,null,null,null,null,null,null,null,null,null,null,null,null,null,null,null,null,"飼料給与関係機械装置","チュウチク","DM-2000SL",49,"飼料給与関係機械装置","長野クリエート","WK-50",54,null,null,null,null,null,null,null,null,"飼料給与関係機械装置","チュウチク","CF-50D",49,null,null,null,null,null,null,null,null,"家畜飼養管理機械装置","デラバル","HN100",308,"家畜飼養管理機械装置","\tCore-Business","e-CAM(イーカム)"]
[null,null,null,null,"搾乳関係機械装置","ボーマチック","Xcalibur 90LX",105,null,null,null,null,null,null,null,null,null,null,null,null,null,null,null,null,"飼料給与関係機械装置","ペロン","TR1500",null,"飼料給与関係機械装置","長野クリエート","S-50",55,null,null,null,null,null,null,null,null,"飼料給与関係機械装置","チュウチク","CL-30D",49,null,null,null,null,null,null,null,null,"家畜飼養管理機械装置","デラバル","HN500",308,"家畜飼養管理機械装置","Core-Support","MOWCAM",312]
[null,null,null,null,"搾乳関係機械装置","SAC","SAC サイドバイサイド",null,null,null,null,null,null,null,null,null,null,null,null,null,null,null,null,null,"飼料給与関係機械装置","ペロン","TR2000コンビ",null,"飼料給与関係機械装置","長野クリエート","S-75",55,null,null,null,null,null,null,null,null,"飼料給与関係機械装置","チュウチク","CL-40D",null,null,null,null,null,null,null,null,null,"家畜飼養管理機械装置","Nedap","Nedapネックタグ",320]
[null,null,null,null,"搾乳関係機械装置","ストランゴ","ターナー社ストール",109,null,null,null,null,null,null,null,null,null,null,null,null,null,null,null,null,"飼料給与関係機械装置","ペロン","TR2500",null,"飼料給与関係機械装置","長野クリエート","S-90",55,null,null,null,null,null,null,null,null,"飼料給与関係機械装置","チュウチク","CL-50D",49,null,null,null,null,null,null,null,null,"家畜飼養管理機械装置","ボーマチック","リアルタイム＋"]
[null,null,null,null,"搾乳関係機械装置","ベコデーリィオートメーション","ベコ・パラレルパーラー",null,null,null,null,null,null,null,null,null,null,null,null,null,null,null,null,null,"飼料給与関係機械装置","ペロン","TR3000コンビ",null,"飼料給与関係機械装置","オリオン機械","FMAG350",64,null,null,null,null,null,null,null,null,"飼料給与関係機械装置","チュウチク","CL-70D",null,null,null,null,null,null,null,null,null,"家畜飼養管理機械装置","SAC","MDS Unitrack"]
[null,null,null,null,"搾乳関係機械装置","フルウッド","QS",null,null,null,null,null,null,null,null,null,null,null,null,null,null,null,null,null,"飼料給与関係機械装置","ペロン","TMRフィーダー",null,"飼料給与関係機械装置","オリオン機械","FMAG440",64,null,null,null,null,null,null,null,null,"飼料給与関係機械装置","チュウチク","CL-80D",null,null,null,null,null,null,null,null,null,"家畜飼養管理機械装置","フルウッド","クリスタル"]
[null,null,null,null,"搾乳関係機械装置","フルウッド","INDEX90",null,null,null,null,null,null,null,null,null,null,null,null,null,null,null,null,null,"飼料給与関係機械装置","ペロン","ベルトフィーダー",null,"飼料給与関係機械装置","オリオン機械","FMST20",null,null,null,null,null,null,null,null,null,"飼料給与関係機械装置","チュウチク","CL-100D",49,null,null,null,null,null,null,null,null,"家畜飼養管理機械装置","ストランゴ","アクトメーター"]
[null,null,null,null,"搾乳関係機械装置","GEA","ユーロクラス1200",103,null,null,null,null,null,null,null,null,null,null,null,null,null,null,null,null,"飼料給与関係機械装置","ロビベック","DEC-4430",63,"飼料給与関係機械装置","オリオン機械","FMST16",null,null,null,null,null,null,null,null,null,"飼料給与関係機械装置","チュウチク","FC-600",72,null,null,null,null,null,null,null,null,"家畜飼養管理機械装置","ストランゴ","アクティビティタグ-首用"]
[null,null,null,null,"搾乳関係機械装置","GEA","ユーロクラス800",103,null,null,null,null,null,null,null,null,null,null,null,null,null,null,null,null,"飼料給与関係機械装置","ロビベック","DEC-4436",63,"飼料給与関係機械装置","デラバル","ORW",null,null,null,null,null,null,null,null,null,"飼料給与関係機械装置","チュウチク","FC-1000",72,null,null,null,null,null,null,null,null,"家畜飼養管理機械装置","ストランゴ","アクティビティタグ-脚用"]
[null,null,null,null,"搾乳関係機械装置","デラバル","HB30°",108,null,null,null,null,null,null,null,null,null,null,null,null,null,null,null,null,"飼料給与関係機械装置","ロビベック","DEC-4442",63,"飼料給与関係機械装置","デラバル","FW200",null,null,null,null,null,null,null,null,null,"飼料給与関係機械装置","VALMETAL","3355B",null,null,null,null,null,null,null,null,null,"家畜飼養管理機械装置","ファームノート","ファームノートカラー"]
[null,null,null,null,"搾乳関係機械装置","デラバル","HB50°",108,null,null,null,null,null,null,null,null,null,null,null,null,null,null,null,null,"飼料給与関係機械装置","ロビベック","DEC-4448",63,"飼料給与関係機械装置","デラバル","オプティフィーダーOFP",66,null,null,null,null,null,null,null,null,"飼料給与関係機械装置","VALMETAL","4390B",null,null,null,null,null,null,null,null,null,"家畜飼養管理機械装置","ファーマーズサポート","発情検知システム",308]
[null,null,null,null,"搾乳関係機械装置","SAC","SAC ヘリンボーンパーラー",null,null,null,null,null,null,null,null,null,null,null,null,null,null,null,null,null,"飼料給与関係機械装置","ロビベック","DEC-HDR",63,"飼料給与関係機械装置","ペロン",300,null,null,null,null,null,null,null,null,null,"飼料給与関係機械装置","VALMETAL","5390B"]
[null,null,null,null,"搾乳関係機械装置","ストランゴ","ヘリングボーンパーラー",null,null,null,null,null,null,null,null,null,null,null,null,null,null,null,null,null,"飼料給与関係機械装置","ロビベック","ROVER-MVR",63,"飼料給与関係機械装置","ペロン",400,null,null,null,null,null,null,null,null,null,"飼料給与関係機械装置","VALMETAL","73110B"]
[null,null,null,null,"搾乳関係機械装置","ベコデーリィオートメーション","ベコ・へリングボーンパーラー",null,null,null,null,null,null,null,null,null,null,null,null,null,null,null,null,null,"飼料給与関係機械装置","大宮製作所","FMR-1H",66,"飼料給与関係機械装置","ペロン",600,null,null,null,null,null,null,null,null,null,"飼料給与関係機械装置","VALMETAL","93110B"]
[null,null,null,null,"搾乳関係機械装置","フルウッド","HB50i",null,null,null,null,null,null,null,null,null,null,null,null,null,null,null,null,null,"飼料給与関係機械装置","大宮製作所","FMR-2H",66,"飼料給与関係機械装置","ペロン","2W 400/600",null,null,null,null,null,null,null,null,null,"飼料給与関係機械装置","ウィバーライン","M531"]
[null,null,null,null,"搾乳関係機械装置","MILKINE","ヘリンボーンパーラー",null,null,null,null,null,null,null,null,null,null,null,null,null,null,null,null,null,"飼料給与関係機械装置","大宮製作所","FMR-3H",66,"飼料給与関係機械装置","ロビベック","ROV4000",63,null,null,null,null,null,null,null,null,"飼料給与関係機械装置","ウィバーライン","M537"]
[null,null,null,null,"搾乳関係機械装置","TDM","ミルキングパーラー３３°",null,null,null,null,null,null,null,null,null,null,null,null,null,null,null,null,null,"飼料給与関係機械装置","大宮製作所","FMR-4H",66,null,null,null,null,null,null,null,null,null,null,null,null,"飼料給与関係機械装置","ウィバーライン","M521"]
[null,null,null,null,"搾乳関係機械装置","オリオン機械","PMH76SJ-SW",null,null,null,null,null,null,null,null,null,null,null,null,null,null,null,null,null,"飼料給与関係機械装置","トリオリット社","WP300",null,null,null,null,null,null,null,null,null,null,null,null,null,"飼料給与関係機械装置","ウィバーライン","M525"]
[null,null,null,null,"搾乳関係機械装置","オリオン機械","PMH64SJ-SW　",null,null,null,null,null,null,null,null,null,null,null,null,null,null,null,null,null,null,null,null,null,null,null,null,null,null,null,null,null,null,null,null,null,"飼料給与関係機械装置","緑産","ＦＫＧ90/450",44]
[null,null,null,null,"搾乳関係機械装置","デラバル","ML3100",null,null,null,null,null,null,null,null,null,null,null,null,null,null,null,null,null,null,null,null,null,null,null,null,null,null,null,null,null,null,null,null,null,"飼料給与関係機械装置","緑産","ＦＫＧ70/450",44]
[null,null,null,null,"搾乳関係機械装置","SAC","SAC スイングオーバー",null,null,null,null,null,null,null,null,null,null,null,null,null,null,null,null,null,null,null,null,null,null,null,null,null,null,null,null,null,null,null,null,null,"飼料給与関係機械装置","緑産","ＦＫＧ110/450",44]
[null,null,null,null,"搾乳関係機械装置","GEA","オートタンデムパーラー",null,null,null,null,null,null,null,null,null,null,null,null,null,null,null,null,null,null,null,null,null,null,null,null,null,null,null,null,null,null,null,null,null,"飼料給与関係機械装置","緑産","ＦＢ30/400"]
[null,null,null,null,"搾乳関係機械装置","オリオン機械","PMH76SJ-P",null,null,null,null,null,null,null,null,null,null,null,null,null,null,null,null,null,null,null,null,null,null,null,null,null,null,null,null,null,null,null,null,null,"飼料給与関係機械装置","緑産","ＦＬ110/500"]
[null,null,null,null,"搾乳関係機械装置","オリオン機械","PMH64SJ-P",110,null,null,null,null,null,null,null,null,null,null,null,null,null,null,null,null,null,null,null,null,null,null,null,null,null,null,null,null,null,null,null,null,"飼料給与関係機械装置","緑産","ＦＬ130/500"]
[null,null,null,null,"搾乳関係機械装置","ストランゴ","個別退出方式",null,null,null,null,null,null,null,null,null,null,null,null,null,null,null,null,null,null,null,null,null,null,null,null,null,null,null,null,null,null,null,null,null,"飼料給与関係機械装置","緑産","ＦＬ150/500"]
[null,null,null,null,"搾乳関係機械装置","フクチ","個別退出方式",null,null,null,null,null,null,null,null,null,null,null,null,null,null,null,null,null,null,null,null,null,null,null,null,null,null,null,null,null,null,null,null,null,"飼料給与関係機械装置","緑産","ＦＬ170/500"]
[null,null,null,null,null,null,null,null,null,null,null,null,null,null,null,null,null,null,null,null,null,null,null,null,null,null,null,null,null,null,null,null,null,null,null,null,null,null,null,null,"飼料給与関係機械装置","緑産","ＳＧ50RE/400",44]
[null,null,null,null,null,null,null,null,null,null,null,null,null,null,null,null,null,null,null,null,null,null,null,null,null,null,null,null,null,null,null,null,null,null,null,null,null,null,null,null,"飼料給与関係機械装置","緑産","ＳＧ70RE/450",44]
[null,null,null,null,null,null,null,null,null,null,null,null,null,null,null,null,null,null,null,null,null,null,null,null,null,null,null,null,null,null,null,null,null,null,null,null,null,null,null,null,"飼料給与関係機械装置","緑産","ＳＧ90RE/450",44]
[null,null,null,null,null,null,null,null,null,null,null,null,null,null,null,null,null,null,null,null,null,null,null,null,null,null,null,null,null,null,null,null,null,null,null,null,null,null,null,null,"飼料給与関係機械装置","緑産","ＳＧ110RE/450",44]
[null,null,null,null,null,null,null,null,null,null,null,null,null,null,null,null,null,null,null,null,null,null,null,null,null,null,null,null,null,null,null,null,null,null,null,null,null,null,null,null,"飼料給与関係機械装置","緑産","ＳＧ110RE/500",44]
[null,null,null,null,null,null,null,null,null,null,null,null,null,null,null,null,null,null,null,null,null,null,null,null,null,null,null,null,null,null,null,null,null,null,null,null,null,null,null,null,"飼料給与関係機械装置","緑産","ＳＧ130RE/500",46]
[null,null,null,null,null,null,null,null,null,null,null,null,null,null,null,null,null,null,null,null,null,null,null,null,null,null,null,null,null,null,null,null,null,null,null,null,null,null,null,null,"飼料給与関係機械装置","緑産","ＳＧ150RE/500",46]
[null,null,null,null,null,null,null,null,null,null,null,null,null,null,null,null,null,null,null,null,null,null,null,null,null,null,null,null,null,null,null,null,null,null,null,null,null,null,null,null,"飼料給与関係機械装置","緑産","ＳＧ170RE/500",46]
[null,null,null,null,null,null,null,null,null,null,null,null,null,null,null,null,null,null,null,null,null,null,null,null,null,null,null,null,null,null,null,null,null,null,null,null,null,null,null,null,"飼料給与関係機械装置","岡田製作所","700LT"]

{"sheet":"機械装置リスト_隠し","index":7,"n_rows":23,"n_cols":75,"rows_kept":23,"cut":false,"hidden":true,"merged":[]}
[]
[]
[]
[null,null,null,null,null,null,null,null,null,null,null,null,null,null,null,null,null,null,null,null,null,null,null,null,null,"GEA","M2000",null,null,"中嶋製作所","T60型",null,null,"フォースターテクニック","CF1000S",null,null,"GEA","FRone",null,null,"JAY・LOR",5100,null,null,"オリオン機械",null,null,null,"オリオン機械","e50",null,null,"GEA","TFR400E",null,null,"リモート","DU-CB01",null,null,"デザミス","DU-TG01（センサー）・DU-RE01（中継機）",null,null,"デザミス","DU-TG01（センサー）・DU-RE01（中継機）",null,null,"GEA","スワロー型（ケーブル）",null,null,"フォースターテクニック","MDK4-200-37-03"]
[null,null,null,null,null,null,null,null,null,null,null,null,null,null,null,null,null,null,null,null,null,null,null,null,null,"オリオン機械","M3000",null,null,"大宮製作所","F-75型",null,null,"LELY（フォースターテクニック）","CFR100",null,null,"JOZ","Moov2.0",null,null,"WIC",5050,null,null,"VALMETAL",null,null,null,"VALMETAL",null,null,null,"コムテック","TFR400EA",null,null,"デザミス",null,null,null,"Nedap","DU-TG02（センサー）・DU-RE02（中継機）",null,null,"Nedap","DU-TG02（センサー）・DU-RE02（中継機）",null,null,"JOZ","V型（ケーブル）",null,null,"デラバル","MDK4-200-37-04"]
[null,null,null,null,null,null,null,null,null,null,null,null,null,null,null,null,null,null,null,null,null,null,null,null,null,"One 2 Feed","FMA20A",null,null,"TEWE","F-90型",null,null,"デラバル",null,null,null,"LELY",null,null,null,"VALMETAL",null,null,null,null,null,null,null,"Wasserbauer",null,null,null,"MSDアニマルヘルス","TFR400E",null,null,"uLikeKorea",null,null,null,"uLikeKorea",null,null,null,"uLikeKorea",null,null,null,"GEAフール","スワロー型（チェーン）",null,null,"Holm & Laue","MDK4-120-37-03"]
[null,null,null,null,null,null,null,null,null,null,null,null,null,null,null,null,null,null,null,null,null,null,null,null,null,"LELY","FMA04A",null,null,"長野クリエート","F-90SS型",null,null,"ストランゴ（フォースターテクニック）",null,null,null,"ボーマチック",null,null,null,"ロビベック",null,null,null,null,null,null,null,"Allflex",null,null,null,"Allflex","TFR400EF",null,null,"太平洋工業",null,null,null,"太平洋工業",null,null,null,"太平洋工業",null,null,null,"福地工業","V型（チェーン）",null,null,"ウーバン","MDK4-120-37-04"]
[null,null,null,null,null,null,null,null,null,null,null,null,null,null,null,null,null,null,null,null,null,null,null,null,null,"デラバル","FMA08A",null,null,"オリオン機械","RC-38型",null,null,"BRITMILK",null,null,null,"ロビベック",null,null,null,"チュウチク",null,null,null,null,null,null,null,"SCR",null,null,null,"デザミス","TFR400EDⅢ",null,null,"ファーマーズサポート",null,null,null,"カスケディア・トレーディング",null,null,null,"カスケディア・トレーディング",null,null,null,"パッツ",null,null,null,null,"MRP1-300-56-200V 50Hz"]
[null,null,null,null,null,null,null,null,null,null,null,null,null,null,null,null,null,null,null,null,null,null,null,null,null,"チュウチク",null,null,null,"デラバル","RC-50型",null,null,"バイオティック",null,null,null,"Wasserbauer",null,null,null,"ウィバーライン",null,null,null,null,null,null,null,"afmilk",null,null,null,"uLikeKorea","TFR400EDⅢ（Jump）",null,null,"ネットカメラ",null,null,null,"ボーマチック",null,null,null,"ボーマチック",null,null,null,"ストランゴ",null,null,null,null,"MRP1-300-56-200V 60Hz"]
[null,null,null,null,null,null,null,null,null,null,null,null,null,null,null,null,null,null,null,null,null,null,null,null,null,"ペロン",null,null,null,"ペロン","C-38型",null,null,"Holm & Laue",null,null,null,"デラバル",null,null,null,"緑産",null,null,null,null,null,null,null,"SCR、ミルクライン",null,null,null,"太平洋工業",null,null,null,"キャノン",null,null,null,"ファームノート",null,null,null,"ファームノート",null,null,null,"デラバル",null,null,null,null,"MRP1-200-56-200V 50Hz"]
[null,null,null,null,null,null,null,null,null,null,null,null,null,null,null,null,null,null,null,null,null,null,null,null,null,"ロビベック",null,null,null,"ロビベック","C-50型",null,null,null,null,null,null,"スガルボルディ",null,null,null,"岡田製作所",null,null,null,null,null,null,null,"デラバル",null,null,null,"afimilk",null,null,null,"デラバル",null,null,null,null,null,null,null,"渋谷",null,null,null,"デラバル",null,null,null,null,"MRP1-200-56-200V 60Hz"]
[null,null,null,null,null,null,null,null,null,null,null,null,null,null,null,null,null,null,null,null,null,null,null,null,null,"大宮製作所",null,null,null,"ペロン","1400型",null,null,null,null,null,null,"岡田製作所",null,null,null,"タカキタ",null,null,null,null,null,null,null,"SEMEX",null,null,null,"afmilk",null,null,null,"ノーリツプレシジョン",null,null,null,null,null,null,null,null,null,null,null,null,null,null,null,null,"MRP1-200-56-200V 50Hz"]
[null,null,null,null,null,null,null,null,null,null,null,null,null,null,null,null,null,null,null,null,null,null,null,null,null,"トリオリット社",null,null,null,"ロビベック","S100型",null,null,null,null,null,null,"タカキタ",null,null,null,"フジキ",null,null,null,null,null,null,null,"ボーマチック",null,null,null,"LELY",null,null,null,"ガーミチューナー",null,null,null,null,null,null,null,null,null,null,null,null,null,null,null,null,"MRP1-200-56-200V 60Hz"]
[null,null,null,null,null,null,null,null,null,null,null,null,null,null,null,null,null,null,null,null,null,null,null,null,null,"長野クリエート",null,null,null,null,null,null,null,null,null,null,null,"オカドバザック",null,null,null,"フジキ",null,null,null,null,null,null,null,"P.A.テクノロジー",null,null,null,"デラバル",null,null,null,"\tCore-Business"]
[null,null,null,null,null,null,null,null,null,null,null,null,null,null,null,null,null,null,null,null,null,null,null,null,null,"長野クリエート",null,null,null,null,null,null,null,null,null,null,null,"フジキ",null,null,null,null,null,null,null,null,null,null,null,"SAC",null,null,null,"Nedap",null,null,null,"Core-Support"]
[null,null,null,null,null,null,null,null,null,null,null,null,null,null,null,null,null,null,null,null,null,null,null,null,null,null,null,null,null,null,null,null,null,null,null,null,null,null,null,null,null,null,null,null,null,null,null,null,null,"フルウッド",null,null,null,"ボーマチック",null,null,null,"Core-Support"]
[null,null,null,null,null,null,null,null,null,null,null,null,null,null,null,null,null,null,null,null,null,null,null,null,null,null,null,null,null,null,null,null,null,null,null,null,null,null,null,null,null,null,null,null,null,null,null,null,null,"ストランゴ",null,null,null,"SAC",null,null,null,"ノーリツプレシジョン"]
[null,null,null,null,null,null,null,null,null,null,null,null,null,null,null,null,null,null,null,null,null,null,null,null,null,null,null,null,null,null,null,null,null,null,null,null,null,null,null,null,null,null,null,null,null,null,null,null,null,"ファームノート",null,null,null,"フルウッド",null,null,null,"NSS"]
[null,null,null,null,null,null,null,null,null,null,null,null,null,null,null,null,null,null,null,null,null,null,null,null,null,null,null,null,null,null,null,null,null,null,null,null,null,null,null,null,null,null,null,null,null,null,null,null,null,"ミルクライトインタープラス",null,null,null,"ストランゴ",null,null,null,"ガーミチューナー"]
[null,null,null,null,null,null,null,null,null,null,null,null,null,null,null,null,null,null,null,null,null,null,null,null,null,null,null,null,null,null,null,null,null,null,null,null,null,null,null,null,null,null,null,null,null,null,null,null,null,"NEDAP",null,null,null,"ファームノート",null,null,null,"大英システム"]
[null,null,null,null,null,null,null,null,null,null,null,null,null,null,null,null,null,null,null,null,null,null,null,null,null,null,null,null,null,null,null,null,null,null,null,null,null,null,null,null,null,null,null,null,null,null,null,null,null,null,null,null,null,"ファーマーズサポート",null,null,null,"\tCore-Business"]
[null,null,null,null,null,null,null,null,null,null,null,null,null,null,null,null,null,null,null,null,null,null,null,null,null,null,null,null,null,null,null,null,null,null,null,null,null,null,null,null,null,null,null,null,null,null,null,null,null,null,null,null,null,"ファーマーズサポート",null,null,null,"コアーサポート"]
[null,null,null,null,null,null,null,null,null,null,null,null,null,null,null,null,null,null,null,null,null,null,null,null,null,null,null,null,null,null,null,null,null,null,null,null,null,null,null,null,null,null,null,null,null,null,null,null,null,null,null,null,null,"ファーマーズサポート"]